Publisher Label,Publisher URI,"Supplier","Invoice ","Amount (£)","Purpose","Transaction Number","Payment Date","Organisational Unit","Cost Centre(T)","Internal category number"
"Wolverhampton City Council","http://opendatacommunities.org/id/metropolitan-district-council/wolverhampton","Access Tail Lift Services Limited","19804","57.44","Services - Professional Fees","190221485","13/04/16","Fleet Services","Fleet Management","R4400"
"Wolverhampton City Council","http://opendatacommunities.org/id/metropolitan-district-council/wolverhampton","Access Tail Lift Services Limited","19767","56.42","Services - Professional Fees","190219431","01/04/16","Fleet Services","Fleet Management","R4400"
"Wolverhampton City Council","http://opendatacommunities.org/id/metropolitan-district-council/wolverhampton","Access Tail Lift Services Limited","19767","62.50","Services - Professional Fees","190219431","01/04/16","Fleet Services","Fleet Management","R4400"
"Wolverhampton City Council","http://opendatacommunities.org/id/metropolitan-district-council/wolverhampton","Access Tail Lift Services Limited","19767","57.44","Services - Professional Fees","190219431","01/04/16","Fleet Services","Fleet Management","R4400"
"Wolverhampton City Council","http://opendatacommunities.org/id/metropolitan-district-council/wolverhampton","Access Tail Lift Services Limited","19767","57.44","Services - Professional Fees","190219431","01/04/16","Fleet Services","Fleet Management","R4400"
"Wolverhampton City Council","http://opendatacommunities.org/id/metropolitan-district-council/wolverhampton","Access Tail Lift Services Limited","19767","57.44","Services - Professional Fees","190219431","01/04/16","Fleet Services","Fleet Management","R4400"
"Wolverhampton City Council","http://opendatacommunities.org/id/metropolitan-district-council/wolverhampton","Access Tail Lift Services Limited","19767","57.44","Services - Professional Fees","190219431","01/04/16","Fleet Services","Fleet Management","R4400"
"Wolverhampton City Council","http://opendatacommunities.org/id/metropolitan-district-council/wolverhampton","Access Tail Lift Services Limited","19767","57.44","Services - Professional Fees","190219431","01/04/16","Fleet Services","Fleet Management","R4400"
"Wolverhampton City Council","http://opendatacommunities.org/id/metropolitan-district-council/wolverhampton","Access Tail Lift Services Limited","19767","57.44","Services - Professional Fees","190219431","01/04/16","Fleet Services","Fleet Management","R4400"
"Wolverhampton City Council","http://opendatacommunities.org/id/metropolitan-district-council/wolverhampton","Access Tail Lift Services Limited","19767","57.44","Services - Professional Fees","190219431","01/04/16","Fleet Services","Fleet Management","R4400"
"Wolverhampton City Council","http://opendatacommunities.org/id/metropolitan-district-council/wolverhampton","Access Tail Lift Services Limited","19767","57.44","Services - Professional Fees","190219431","01/04/16","Fleet Services","Fleet Management","R4400"
"Wolverhampton City Council","http://opendatacommunities.org/id/metropolitan-district-council/wolverhampton","Access Tail Lift Services Limited","19767","57.44","Services - Professional Fees","190219431","01/04/16","Fleet Services","Fleet Management","R4400"
"Wolverhampton City Council","http://opendatacommunities.org/id/metropolitan-district-council/wolverhampton","Access Tail Lift Services Limited","19767","57.44","Services - Professional Fees","190219431","01/04/16","Fleet Services","Fleet Management","R4400"
"Wolverhampton City Council","http://opendatacommunities.org/id/metropolitan-district-council/wolverhampton","Access Tail Lift Services Limited","19767","57.44","Services - Professional Fees","190219431","01/04/16","Fleet Services","Fleet Management","R4400"
"Wolverhampton City Council","http://opendatacommunities.org/id/metropolitan-district-council/wolverhampton","Access Tail Lift Services Limited","19767","57.44","Services - Professional Fees","190219431","01/04/16","Fleet Services","Fleet Management","R4400"
"Wolverhampton City Council","http://opendatacommunities.org/id/metropolitan-district-council/wolverhampton","Access Tail Lift Services Limited","19767","57.44","Services - Professional Fees","190219431","01/04/16","Fleet Services","Fleet Management","R4400"
"Wolverhampton City Council","http://opendatacommunities.org/id/metropolitan-district-council/wolverhampton","Access Tail Lift Services Limited","19767","57.44","Services - Professional Fees","190219431","01/04/16","Fleet Services","Fleet Management","R4400"
"Wolverhampton City Council","http://opendatacommunities.org/id/metropolitan-district-council/wolverhampton","Acme-H&H Refrigeration","IN283268","402.00","Equipment - Catering","130116350","15/04/16","Catering","Education Catering - General Overheads","R4010"
"Wolverhampton City Council","http://opendatacommunities.org/id/metropolitan-district-council/wolverhampton","Acme-H&H Refrigeration","IN283201","365.00","Equipment - Catering","130115423","08/04/16","Catering","Education Catering - General Overheads","R4010"
"Wolverhampton City Council","http://opendatacommunities.org/id/metropolitan-district-council/wolverhampton","Acorn Environmental Mgt Group Limited","8777","4,458.18","Grounds Maintenance - Contract","130113659","01/04/16","Environmental Maintenance","Arbor Scheme","R2075"
"Wolverhampton City Council","http://opendatacommunities.org/id/metropolitan-district-council/wolverhampton","Acs Business Supplies Limited","SINV00310352","7.84","Stationery","130114050","13/04/16","Environmental Maintenance","Ground Maintenance Overheads","R4308"
"Wolverhampton City Council","http://opendatacommunities.org/id/metropolitan-district-council/wolverhampton","Acs Business Supplies Limited","SINV00310346","60.86","Stationery","130114044","13/04/16","Revenues & Benefits","Revenues","R4308"
"Wolverhampton City Council","http://opendatacommunities.org/id/metropolitan-district-council/wolverhampton","Acs Business Supplies Limited","SINV00310345","31.00","Stationery","130114043","13/04/16","Highways Maintenance","Patching","R4308"
"Wolverhampton City Council","http://opendatacommunities.org/id/metropolitan-district-council/wolverhampton","Acs Business Supplies Limited","SINV00310344","44.27","Stationery","130114042","13/04/16","Leisure Services","Bert Williams Leisure Centre","R4308"
"Wolverhampton City Council","http://opendatacommunities.org/id/metropolitan-district-council/wolverhampton","Acs Business Supplies Limited","SINV00310350","38.04","Stationery","130114048","13/04/16","Fleet Services","Passenger Transport - General","R4308"
"Wolverhampton City Council","http://opendatacommunities.org/id/metropolitan-district-council/wolverhampton","Acs Business Supplies Limited","SINV00310349","40.00","Stationery","130114047","13/04/16","Safeguarding","Safeguarding & Quality Administration","R4308"
"Wolverhampton City Council","http://opendatacommunities.org/id/metropolitan-district-council/wolverhampton","Acs Business Supplies Limited","SINV00310348","96.98","Stationery","130114046","13/04/16","Visitor Economy","Midland Box Office","R4308"
"Wolverhampton City Council","http://opendatacommunities.org/id/metropolitan-district-council/wolverhampton","Acs Business Supplies Limited","SINV00310351","159.64","Stationery","130114049","13/04/16","Adult Education","Service Wide","R4308"
"Wolverhampton City Council","http://opendatacommunities.org/id/metropolitan-district-council/wolverhampton","Acs Business Supplies Limited","SINV00310347","94.20","Stationery","130114045","13/04/16","Adult Education","Service Wide","R4308"
"Wolverhampton City Council","http://opendatacommunities.org/id/metropolitan-district-council/wolverhampton","Acs Business Supplies Limited","SINV00310343","210.91","Stationery","130114041","13/04/16","Culture Arts & Heritage","Technical Material- NPO ACE WAG","R4308"
"Wolverhampton City Council","http://opendatacommunities.org/id/metropolitan-district-council/wolverhampton","Acs Business Supplies Limited","SINV00310353","253.60","Stationery","130114051","13/04/16","ICTS","Document Centre - General","R4308"
"Wolverhampton City Council","http://opendatacommunities.org/id/metropolitan-district-council/wolverhampton","Acs Business Supplies Limited","SINV00310796","253.60","Stationery","130114267","15/04/16","ICTS","Document Centre - General","R4308"
"Wolverhampton City Council","http://opendatacommunities.org/id/metropolitan-district-council/wolverhampton","Acs Business Supplies Limited","SINV00311154","245.00","Stationery","130114489","15/04/16","Legal Services","Legal Services","R4308"
"Wolverhampton City Council","http://opendatacommunities.org/id/metropolitan-district-council/wolverhampton","Acs Business Supplies Limited","SINV00311160","69.60","Stationery","130114495","15/04/16","Culture Arts & Heritage","Education And Access","R4308"
"Wolverhampton City Council","http://opendatacommunities.org/id/metropolitan-district-council/wolverhampton","Acs Business Supplies Limited","SINV00311156","912.16","Stationery","130114491","15/04/16","Healthier Places Service","Obesity Ring Fenced Expenditure","R4308"
"Wolverhampton City Council","http://opendatacommunities.org/id/metropolitan-district-council/wolverhampton","Acs Business Supplies Limited","SINV00311155","730.64","Stationery","130114490","15/04/16","Management and Administration","Public Health Support Costs","R4308"
"Wolverhampton City Council","http://opendatacommunities.org/id/metropolitan-district-council/wolverhampton","Acs Business Supplies Limited","SINV00311159","385.50","Stationery","130114494","15/04/16","Fleet Services","Fleet Management","R4308"
"Wolverhampton City Council","http://opendatacommunities.org/id/metropolitan-district-council/wolverhampton","Acs Business Supplies Limited","SINV00311152","8.95","Stationery","130114488","15/04/16","Welfare Rights & Financial Assessment","Welfare Rights","R4308"
"Wolverhampton City Council","http://opendatacommunities.org/id/metropolitan-district-council/wolverhampton","Acs Business Supplies Limited","SINV00311158","127.44","Stationery","130114493","15/04/16","Visitor Economy","Box Office Administration","R4308"
"Wolverhampton City Council","http://opendatacommunities.org/id/metropolitan-district-council/wolverhampton","Acs Business Supplies Limited","SINV00311157","50.58","Stationery","130114492","15/04/16","Looked After Children","LAC Transitions Team","R4308"
"Wolverhampton City Council","http://opendatacommunities.org/id/metropolitan-district-council/wolverhampton","Acs Business Supplies Limited","SINV00307825","37.92","Stationery","130110736","29/04/16","Older People Assessment & Care Management","Assessment Team (North)","R4308"
"Wolverhampton City Council","http://opendatacommunities.org/id/metropolitan-district-council/wolverhampton","Acs Business Supplies Limited","SINV00313468","48.95","Stationery","130115702","27/04/16","Buisness Continuity & Emergency Planning","Buisness Continuity & Emergency Planning","R4308"
"Wolverhampton City Council","http://opendatacommunities.org/id/metropolitan-district-council/wolverhampton","Acs Business Supplies Limited","SINV00312648","19.50","Stationery","130115223","27/04/16","Special Educational Needs","SEN Special Education Admin","R4308"
"Wolverhampton City Council","http://opendatacommunities.org/id/metropolitan-district-council/wolverhampton","Acs Business Supplies Limited","SINV00312286","15.33","Stationery","130115030","27/04/16","Corporate Asset Management","Strategic Asset Management Team","R4308"
"Wolverhampton City Council","http://opendatacommunities.org/id/metropolitan-district-council/wolverhampton","Acs Business Supplies Limited","SINV00313001","35.52","Stationery","130115700","27/04/16","Markets","Wolverhampton Indoor and Open Market","R4308"
"Wolverhampton City Council","http://opendatacommunities.org/id/metropolitan-district-council/wolverhampton","Acs Business Supplies Limited","SINV00313091","30.44","Stationery","130115701","27/04/16","Housing Revenue Account","Special Needs","R4308"
"Wolverhampton City Council","http://opendatacommunities.org/id/metropolitan-district-council/wolverhampton","Acs Business Supplies Limited","SINV00312999","454.70","Stationery","130115698","27/04/16","ICTS","Document Centre - General","R4308"
"Wolverhampton City Council","http://opendatacommunities.org/id/metropolitan-district-council/wolverhampton","Acs Business Supplies Limited","SINV00312284","126.34","Stationery","130115029","27/04/16","Looked After Children","LAC Transitions Team","R4308"
"Wolverhampton City Council","http://opendatacommunities.org/id/metropolitan-district-council/wolverhampton","Acs Business Supplies Limited","SINV00312284","0.16","Stationery","130115029","27/04/16","Looked After Children","LAC Transitions Team","R4308"
"Wolverhampton City Council","http://opendatacommunities.org/id/metropolitan-district-council/wolverhampton","Acs Business Supplies Limited","SINV00313000","53.90","Stationery","130115699","27/04/16","Visitor Economy","Civic Halls Non-Direct Event Management Account","R4308"
"Wolverhampton City Council","http://opendatacommunities.org/id/metropolitan-district-council/wolverhampton","Acs Business Supplies Limited","SINV00312288","253.60","Stationery","130115032","27/04/16","ICTS","Document Centre - General","R4308"
"Wolverhampton City Council","http://opendatacommunities.org/id/metropolitan-district-council/wolverhampton","Acs Business Supplies Limited","SINV00312285","51.14","Stationery","130115453","27/04/16","Leisure Services","Central Baths","R4308"
"Wolverhampton City Council","http://opendatacommunities.org/id/metropolitan-district-council/wolverhampton","Acs Business Supplies Limited","SINV00308982","30.58","Stationery","130112056","08/04/16","Learning Disability Provider","Community Enablement","R4308"
"Wolverhampton City Council","http://opendatacommunities.org/id/metropolitan-district-council/wolverhampton","Acs Business Supplies Limited","SCRN00038534","-104.48","Stationery","130112053","08/04/16","Visitor Economy","Box Office Administration","R4308"
"Wolverhampton City Council","http://opendatacommunities.org/id/metropolitan-district-council/wolverhampton","Acs Business Supplies Limited","SINV00309931","109.98","Stationery","130113278","08/04/16","Looked After Children","Adoption Team","R4308"
"Wolverhampton City Council","http://opendatacommunities.org/id/metropolitan-district-council/wolverhampton","Acs Business Supplies Limited","SINV00311153","689.98","Stationery","130116931","22/04/16","Healthier Places Service","Obesity Ring Fenced Expenditure","R4308"
"Wolverhampton City Council","http://opendatacommunities.org/id/metropolitan-district-council/wolverhampton","Action For Children Services Limited","R81IN2/00005802","17,287.12","TPP - Short Breaks","130115022","20/04/16","Short Breaks Commissioning","Short Breaks","R5500"
"Wolverhampton City Council","http://opendatacommunities.org/id/metropolitan-district-council/wolverhampton","Action For Children Services Limited","R81IN2/00005802","-17,287.12","TPP - Short Breaks","130115022","20/04/16","Short Breaks Commissioning","Short Breaks","R5500"
"Wolverhampton City Council","http://opendatacommunities.org/id/metropolitan-district-council/wolverhampton","Action For Children Services Limited","R81IN2/00005802","17,287.12","TPP - Short Breaks","130115022","20/04/16","Short Breaks Commissioning","Short Breaks","R5500"
"Wolverhampton City Council","http://opendatacommunities.org/id/metropolitan-district-council/wolverhampton","Activities 4 U","3080","240.00","Services - Supplies and Services to service users","130109794","01/04/16","Older People Provider Services","Woden Resource Centre","R4408"
"Wolverhampton City Council","http://opendatacommunities.org/id/metropolitan-district-council/wolverhampton","Activities 4 U","3080","-240.00","Services - Supplies and Services to service users","130109794","01/04/16","Older People Provider Services","Woden Resource Centre","R4408"
"Wolverhampton City Council","http://opendatacommunities.org/id/metropolitan-district-council/wolverhampton","Activities 4 U","3080","240.00","Services - Supplies and Services to service users","130109794","01/04/16","Older People Provider Services","Woden Resource Centre","R4408"
"Wolverhampton City Council","http://opendatacommunities.org/id/metropolitan-district-council/wolverhampton","Acuma Solutions Limited","SIN016064","19,135.74","Computing - Maint Agreements","130112215","27/04/16","ICTS","Strategic ICTS (ICT Service Budget)","R4534"
"Wolverhampton City Council","http://opendatacommunities.org/id/metropolitan-district-council/wolverhampton","Adoption Matters Northwest","781/16","3,130.20","Services - Professional Fees","130115612","13/04/16","Looked After Children","Adoption and Residence Team & Allowances","R4400"
"Wolverhampton City Council","http://opendatacommunities.org/id/metropolitan-district-council/wolverhampton","Adreeja Chatterjee","655600","4,125.00","Services - Professional Fees","130117872","27/04/16","Children in Need & Child Protection","Head of Service - CINCP","R4400"
"Wolverhampton City Council","http://opendatacommunities.org/id/metropolitan-district-council/wolverhampton","Adt Fire And Security PLC","32278773 - 02","295.85","Services - Security","130117447","27/04/16","Social Inclusion & Play Service","MAST 3 - Graiseley","R4405"
"Wolverhampton City Council","http://opendatacommunities.org/id/metropolitan-district-council/wolverhampton","Adt Fire And Security PLC","32072024-02","383.69","Fixtures and Fittings - R&M","130117652","27/04/16","Markets","Bilston Market and Licensed Operations","R2502"
"Wolverhampton City Council","http://opendatacommunities.org/id/metropolitan-district-council/wolverhampton","Adt Fire And Security PLC","28460466-02","105.80","Services - Security","130115328","08/04/16","Engineering & Civic Centre","Civic Centre","R4405"
"Wolverhampton City Council","http://opendatacommunities.org/id/metropolitan-district-council/wolverhampton","Adt Fire And Security PLC","31547723-02","454.62","Fixtures and Fittings - R&M","130113626","01/04/16","Community Centres (Corporate Landlord)","Caretakers Community Centre","R2502"
"Wolverhampton City Council","http://opendatacommunities.org/id/metropolitan-district-council/wolverhampton","Adt Fire And Security PLC","31367455-02","374.75","Fixtures and Fittings - R&M","130113625","01/04/16","Community Centres (Corporate Landlord)","Caretakers Community Centre","R2502"
"Wolverhampton City Council","http://opendatacommunities.org/id/metropolitan-district-council/wolverhampton","Adt Fire And Security PLC","32051662-02","259.46","Fixtures and Fittings - R&M","130116814","20/04/16","Learning Disability Provider","Learning Disabilities Management","R2502"
"Wolverhampton City Council","http://opendatacommunities.org/id/metropolitan-district-council/wolverhampton","Adt Fire And Security PLC","31818636 - 02","219.26","Fixtures and Fittings - R&M","130114165","06/04/16","Learning Disability Provider","Community Enablement","R2502"
"Wolverhampton City Council","http://opendatacommunities.org/id/metropolitan-district-council/wolverhampton","Adt Fire And Security PLC","30596383 - 02","315.68","Fixtures and Fittings - R&M","130114888","06/04/16","Learning Disability Provider","Community Enablement","R2502"
"Wolverhampton City Council","http://opendatacommunities.org/id/metropolitan-district-council/wolverhampton","Af Blakemore/Blakemore Foodservice","5003195","133.15","Provisions (Resale)","130115354","13/04/16","Older People Provider Services","Bradley Lodge Resource Centre","R4102"
"Wolverhampton City Council","http://opendatacommunities.org/id/metropolitan-district-council/wolverhampton","Af Blakemore/Blakemore Foodservice","5003195","-133.15","Provisions (Resale)","130115354","13/04/16","Older People Provider Services","Bradley Lodge Resource Centre","R4102"
"Wolverhampton City Council","http://opendatacommunities.org/id/metropolitan-district-council/wolverhampton","Af Blakemore/Blakemore Foodservice","5003195","21.00","Provisions (Resale)","130115354","13/04/16","Older People Provider Services","Bradley Lodge Resource Centre","R4102"
"Wolverhampton City Council","http://opendatacommunities.org/id/metropolitan-district-council/wolverhampton","Af Blakemore/Blakemore Foodservice","5003195","112.15","Provisions (Resale)","130115354","13/04/16","Older People Provider Services","Bradley Lodge Resource Centre","R4102"
"Wolverhampton City Council","http://opendatacommunities.org/id/metropolitan-district-council/wolverhampton","Af Blakemore/Blakemore Foodservice","2528687","349.16","Provisions (Resale)","130115775","13/04/16","Visitor Economy","The Little Civic","R4102"
"Wolverhampton City Council","http://opendatacommunities.org/id/metropolitan-district-council/wolverhampton","Af Blakemore/Blakemore Foodservice","2528687","-349.16","Provisions (Resale)","130115775","13/04/16","Visitor Economy","The Little Civic","R4102"
"Wolverhampton City Council","http://opendatacommunities.org/id/metropolitan-district-council/wolverhampton","Af Blakemore/Blakemore Foodservice","2528687","347.34","Provisions (Resale)","130115775","13/04/16","Visitor Economy","The Little Civic","R4102"
"Wolverhampton City Council","http://opendatacommunities.org/id/metropolitan-district-council/wolverhampton","Af Blakemore/Blakemore Foodservice","2528687","1.82","Provisions (Resale)","130115775","13/04/16","Visitor Economy","The Little Civic","R4102"
"Wolverhampton City Council","http://opendatacommunities.org/id/metropolitan-district-council/wolverhampton","Af Blakemore/Blakemore Foodservice","2528813","143.84","Provisions (Resale)","130115776","13/04/16","Visitor Economy","The Little Civic","R4102"
"Wolverhampton City Council","http://opendatacommunities.org/id/metropolitan-district-council/wolverhampton","Af Blakemore/Blakemore Foodservice","2528813","-143.84","Provisions (Resale)","130115776","13/04/16","Visitor Economy","The Little Civic","R4102"
"Wolverhampton City Council","http://opendatacommunities.org/id/metropolitan-district-council/wolverhampton","Af Blakemore/Blakemore Foodservice","2528813","79.42","Provisions (Resale)","130115776","13/04/16","Visitor Economy","The Little Civic","R4102"
"Wolverhampton City Council","http://opendatacommunities.org/id/metropolitan-district-council/wolverhampton","Af Blakemore/Blakemore Foodservice","2528813","64.42","Provisions (Resale)","130115776","13/04/16","Visitor Economy","The Little Civic","R4102"
"Wolverhampton City Council","http://opendatacommunities.org/id/metropolitan-district-council/wolverhampton","Af Blakemore/Blakemore Foodservice","WCC000118","492.75","Provisions (Resale)","130112562","13/04/16","Catering","Civic Centre Catering","R4102"
"Wolverhampton City Council","http://opendatacommunities.org/id/metropolitan-district-council/wolverhampton","Af Blakemore/Blakemore Foodservice","WCA000019","1,707.38","Provisions (Resale)","130112558","13/04/16","Leisure Services","WV Active Catering","R4102"
"Wolverhampton City Council","http://opendatacommunities.org/id/metropolitan-district-council/wolverhampton","Af Blakemore/Blakemore Foodservice","WCA000019","-1,707.38","Provisions (Resale)","130112558","13/04/16","Leisure Services","WV Active Catering","R4102"
"Wolverhampton City Council","http://opendatacommunities.org/id/metropolitan-district-council/wolverhampton","Af Blakemore/Blakemore Foodservice","WCA000019","441.99","Provisions (Resale)","130112558","13/04/16","Leisure Services","WV Active Catering","R4102"
"Wolverhampton City Council","http://opendatacommunities.org/id/metropolitan-district-council/wolverhampton","Af Blakemore/Blakemore Foodservice","WCA000019","1,265.39","Provisions (Resale)","130112558","13/04/16","Leisure Services","WV Active Catering","R4102"
"Wolverhampton City Council","http://opendatacommunities.org/id/metropolitan-district-council/wolverhampton","Af Blakemore/Blakemore Foodservice","WCC000119","85,477.27","Provisions (Not for resale)","130112563","13/04/16","Catering","Education Catering - General Overheads","R4101"
"Wolverhampton City Council","http://opendatacommunities.org/id/metropolitan-district-council/wolverhampton","Af Blakemore/Blakemore Foodservice","WCC000119","-85,477.27","Provisions (Not for resale)","130112563","13/04/16","Catering","Education Catering - General Overheads","R4101"
"Wolverhampton City Council","http://opendatacommunities.org/id/metropolitan-district-council/wolverhampton","Af Blakemore/Blakemore Foodservice","WCC000119","1,675.29","Provisions (Not for resale)","130112563","13/04/16","Catering","Education Catering - General Overheads","R4101"
"Wolverhampton City Council","http://opendatacommunities.org/id/metropolitan-district-council/wolverhampton","Af Blakemore/Blakemore Foodservice","WCC000119","83,801.98","Provisions (Not for resale)","130112563","13/04/16","Catering","Education Catering - General Overheads","R4101"
"Wolverhampton City Council","http://opendatacommunities.org/id/metropolitan-district-council/wolverhampton","Af Blakemore/Blakemore Foodservice","WCC000116","86.91","Provisions (Resale)","130112560","13/04/16","Leisure Services","WV Active Catering","R4102"
"Wolverhampton City Council","http://opendatacommunities.org/id/metropolitan-district-council/wolverhampton","Af Blakemore/Blakemore Foodservice","WCC000115","1,217.09","Provisions (Not for resale)","130112559","13/04/16","Leisure Services","WV Active Catering","R4101"
"Wolverhampton City Council","http://opendatacommunities.org/id/metropolitan-district-council/wolverhampton","Af Blakemore/Blakemore Foodservice","WCC000115","-1,217.09","Provisions (Not for resale)","130112559","13/04/16","Leisure Services","WV Active Catering","R4101"
"Wolverhampton City Council","http://opendatacommunities.org/id/metropolitan-district-council/wolverhampton","Af Blakemore/Blakemore Foodservice","WCC000115","789.10","Provisions (Not for resale)","130112559","13/04/16","Leisure Services","WV Active Catering","R4101"
"Wolverhampton City Council","http://opendatacommunities.org/id/metropolitan-district-council/wolverhampton","Af Blakemore/Blakemore Foodservice","WCC000115","427.99","Provisions (Not for resale)","130112559","13/04/16","Leisure Services","WV Active Catering","R4101"
"Wolverhampton City Council","http://opendatacommunities.org/id/metropolitan-district-council/wolverhampton","Af Blakemore/Blakemore Foodservice","WCC000117","528.35","Provisions (Resale)","130112561","13/04/16","Catering","Bert Williams Leisure Centre Caf�","R4102"
"Wolverhampton City Council","http://opendatacommunities.org/id/metropolitan-district-council/wolverhampton","Af Blakemore/Blakemore Foodservice","WCC000117","-528.35","Provisions (Resale)","130112561","13/04/16","Catering","Bert Williams Leisure Centre Caf�","R4102"
"Wolverhampton City Council","http://opendatacommunities.org/id/metropolitan-district-council/wolverhampton","Af Blakemore/Blakemore Foodservice","WCC000117","521.35","Provisions (Resale)","130112561","13/04/16","Catering","Bert Williams Leisure Centre Caf�","R4102"
"Wolverhampton City Council","http://opendatacommunities.org/id/metropolitan-district-council/wolverhampton","Af Blakemore/Blakemore Foodservice","WCC000117","7.00","Provisions (Resale)","130112561","13/04/16","Catering","Bert Williams Leisure Centre Caf�","R4102"
"Wolverhampton City Council","http://opendatacommunities.org/id/metropolitan-district-council/wolverhampton","Af Blakemore/Blakemore Foodservice","WCC000122","1,141.54","Provisions (Resale)","130114077","15/04/16","Catering","Bert Williams Leisure Centre Caf�","R4102"
"Wolverhampton City Council","http://opendatacommunities.org/id/metropolitan-district-council/wolverhampton","Af Blakemore/Blakemore Foodservice","WCC000122","-1,141.54","Provisions (Resale)","130114077","15/04/16","Catering","Bert Williams Leisure Centre Caf�","R4102"
"Wolverhampton City Council","http://opendatacommunities.org/id/metropolitan-district-council/wolverhampton","Af Blakemore/Blakemore Foodservice","WCC000122","560.64","Provisions (Resale)","130114077","15/04/16","Catering","Bert Williams Leisure Centre Caf�","R4102"
"Wolverhampton City Council","http://opendatacommunities.org/id/metropolitan-district-council/wolverhampton","Af Blakemore/Blakemore Foodservice","WCC000122","580.90","Provisions (Resale)","130114077","15/04/16","Catering","Bert Williams Leisure Centre Caf�","R4102"
"Wolverhampton City Council","http://opendatacommunities.org/id/metropolitan-district-council/wolverhampton","Af Blakemore/Blakemore Foodservice","5003201","272.36","Provisions (Resale)","130115355","15/04/16","Older People Provider Services","Bradley Lodge Resource Centre","R4102"
"Wolverhampton City Council","http://opendatacommunities.org/id/metropolitan-district-council/wolverhampton","Af Blakemore/Blakemore Foodservice","5003201","-272.36","Provisions (Resale)","130115355","15/04/16","Older People Provider Services","Bradley Lodge Resource Centre","R4102"
"Wolverhampton City Council","http://opendatacommunities.org/id/metropolitan-district-council/wolverhampton","Af Blakemore/Blakemore Foodservice","5003201","21.38","Provisions (Resale)","130115355","15/04/16","Older People Provider Services","Bradley Lodge Resource Centre","R4102"
"Wolverhampton City Council","http://opendatacommunities.org/id/metropolitan-district-council/wolverhampton","Af Blakemore/Blakemore Foodservice","5003201","250.98","Provisions (Resale)","130115355","15/04/16","Older People Provider Services","Bradley Lodge Resource Centre","R4102"
"Wolverhampton City Council","http://opendatacommunities.org/id/metropolitan-district-council/wolverhampton","Af Blakemore/Blakemore Foodservice","5003208","10.93","Provisions (Resale)","130115356","15/04/16","Older People Provider Services","Bradley Lodge Resource Centre","R4102"
"Wolverhampton City Council","http://opendatacommunities.org/id/metropolitan-district-council/wolverhampton","Af Blakemore/Blakemore Foodservice","WCC000123","2,739.57","Provisions (Resale)","130114078","15/04/16","Catering","Civic Centre Catering","R4102"
"Wolverhampton City Council","http://opendatacommunities.org/id/metropolitan-district-council/wolverhampton","Af Blakemore/Blakemore Foodservice","WCC000123","-2,739.57","Provisions (Resale)","130114078","15/04/16","Catering","Civic Centre Catering","R4102"
"Wolverhampton City Council","http://opendatacommunities.org/id/metropolitan-district-council/wolverhampton","Af Blakemore/Blakemore Foodservice","WCC000123","1,139.78","Provisions (Resale)","130114078","15/04/16","Catering","Civic Centre Catering","R4102"
"Wolverhampton City Council","http://opendatacommunities.org/id/metropolitan-district-council/wolverhampton","Af Blakemore/Blakemore Foodservice","WCC000123","1,599.79","Provisions (Resale)","130114078","15/04/16","Catering","Civic Centre Catering","R4102"
"Wolverhampton City Council","http://opendatacommunities.org/id/metropolitan-district-council/wolverhampton","Af Blakemore/Blakemore Foodservice","WCC000124","60,372.56","Provisions (Not for resale)","130114079","15/04/16","Catering","Education Catering - General Overheads","R4101"
"Wolverhampton City Council","http://opendatacommunities.org/id/metropolitan-district-council/wolverhampton","Af Blakemore/Blakemore Foodservice","WCC000124","-60,372.56","Provisions (Not for resale)","130114079","15/04/16","Catering","Education Catering - General Overheads","R4101"
"Wolverhampton City Council","http://opendatacommunities.org/id/metropolitan-district-council/wolverhampton","Af Blakemore/Blakemore Foodservice","WCC000124","7,607.50","Provisions (Not for resale)","130114079","15/04/16","Catering","Education Catering - General Overheads","R4101"
"Wolverhampton City Council","http://opendatacommunities.org/id/metropolitan-district-council/wolverhampton","Af Blakemore/Blakemore Foodservice","WCC000124","52,765.17","Provisions (Not for resale)","130114079","15/04/16","Catering","Education Catering - General Overheads","R4101"
"Wolverhampton City Council","http://opendatacommunities.org/id/metropolitan-district-council/wolverhampton","Af Blakemore/Blakemore Foodservice","WCC000121","486.90","Provisions (Resale)","130114076","15/04/16","Catering","Meals on Wheels","R4102"
"Wolverhampton City Council","http://opendatacommunities.org/id/metropolitan-district-council/wolverhampton","Af Blakemore/Blakemore Foodservice","WCC000121","-486.90","Provisions (Resale)","130114076","15/04/16","Catering","Meals on Wheels","R4102"
"Wolverhampton City Council","http://opendatacommunities.org/id/metropolitan-district-council/wolverhampton","Af Blakemore/Blakemore Foodservice","WCC000121","458.70","Provisions (Resale)","130114076","15/04/16","Catering","Meals on Wheels","R4102"
"Wolverhampton City Council","http://opendatacommunities.org/id/metropolitan-district-council/wolverhampton","Af Blakemore/Blakemore Foodservice","WCC000121","28.20","Provisions (Resale)","130114076","15/04/16","Catering","Meals on Wheels","R4102"
"Wolverhampton City Council","http://opendatacommunities.org/id/metropolitan-district-council/wolverhampton","Af Blakemore/Blakemore Foodservice","5001095","88.62","Provisions (Not for resale)","130114418","15/04/16","Adult Education","Discretionary Fund","R4101"
"Wolverhampton City Council","http://opendatacommunities.org/id/metropolitan-district-council/wolverhampton","Af Blakemore/Blakemore Foodservice","5000539","-44.47","Provisions (Resale)","130115353","22/04/16","Older People Provider Services","Bradley Lodge Resource Centre","R4102"
"Wolverhampton City Council","http://opendatacommunities.org/id/metropolitan-district-council/wolverhampton","Af Blakemore/Blakemore Foodservice","5000539","44.47","Provisions (Resale)","130115353","22/04/16","Older People Provider Services","Bradley Lodge Resource Centre","R4102"
"Wolverhampton City Council","http://opendatacommunities.org/id/metropolitan-district-council/wolverhampton","Af Blakemore/Blakemore Foodservice","5000539","-7.00","Provisions (Resale)","130115353","22/04/16","Older People Provider Services","Bradley Lodge Resource Centre","R4102"
"Wolverhampton City Council","http://opendatacommunities.org/id/metropolitan-district-council/wolverhampton","Af Blakemore/Blakemore Foodservice","5000539","-37.47","Provisions (Resale)","130115353","22/04/16","Older People Provider Services","Bradley Lodge Resource Centre","R4102"
"Wolverhampton City Council","http://opendatacommunities.org/id/metropolitan-district-council/wolverhampton","Af Blakemore/Blakemore Foodservice","WCC000120","123,088.22","Provisions (Not for resale)","130113516","22/04/16","Catering","Education Catering - General Overheads","R4101"
"Wolverhampton City Council","http://opendatacommunities.org/id/metropolitan-district-council/wolverhampton","Af Blakemore/Blakemore Foodservice","WCC000120","-123,088.22","Provisions (Not for resale)","130113516","22/04/16","Catering","Education Catering - General Overheads","R4101"
"Wolverhampton City Council","http://opendatacommunities.org/id/metropolitan-district-council/wolverhampton","Af Blakemore/Blakemore Foodservice","WCC000120","1,401.69","Provisions (Not for resale)","130113516","22/04/16","Catering","Education Catering - General Overheads","R4101"
"Wolverhampton City Council","http://opendatacommunities.org/id/metropolitan-district-council/wolverhampton","Af Blakemore/Blakemore Foodservice","WCC000120","121,686.53","Provisions (Not for resale)","130113516","22/04/16","Catering","Education Catering - General Overheads","R4101"
"Wolverhampton City Council","http://opendatacommunities.org/id/metropolitan-district-council/wolverhampton","Af Blakemore/Blakemore Foodservice","4617753","31.20","Provisions (Resale)","130086849","06/04/16","Adult Education","Creative Studies Delivery Area","R4102"
"Wolverhampton City Council","http://opendatacommunities.org/id/metropolitan-district-council/wolverhampton","Af Blakemore/Blakemore Foodservice","4975140","174.73","Provisions (Resale)","130112713","01/04/16","Older People Provider Services","Bradley Lodge Resource Centre","R4102"
"Wolverhampton City Council","http://opendatacommunities.org/id/metropolitan-district-council/wolverhampton","Af Blakemore/Blakemore Foodservice","4975140","-174.73","Provisions (Resale)","130112713","01/04/16","Older People Provider Services","Bradley Lodge Resource Centre","R4102"
"Wolverhampton City Council","http://opendatacommunities.org/id/metropolitan-district-council/wolverhampton","Af Blakemore/Blakemore Foodservice","4975140","20.82","Provisions (Resale)","130112713","01/04/16","Older People Provider Services","Bradley Lodge Resource Centre","R4102"
"Wolverhampton City Council","http://opendatacommunities.org/id/metropolitan-district-council/wolverhampton","Af Blakemore/Blakemore Foodservice","4975140","153.91","Provisions (Resale)","130112713","01/04/16","Older People Provider Services","Bradley Lodge Resource Centre","R4102"
"Wolverhampton City Council","http://opendatacommunities.org/id/metropolitan-district-council/wolverhampton","Af Blakemore/Blakemore Foodservice","4976831","86.47","Provisions (Not for resale)","130113141","01/04/16","Adult Education","Discretionary Fund","R4101"
"Wolverhampton City Council","http://opendatacommunities.org/id/metropolitan-district-council/wolverhampton","Age UK Wolverhampton","HP.002.1617","54.00","Equipment - Purchase","130117016","20/04/16","Learning Disability Assessment & Care Management","Learning Disabilities Assessment and Care Management","R4000"
"Wolverhampton City Council","http://opendatacommunities.org/id/metropolitan-district-council/wolverhampton","Aidapt Bathrooms Limited","238067","1,194.00","Equipment - Purchase","130117120","20/04/16","Independent Living Service","Independent Living Service","R4000"
"Wolverhampton City Council","http://opendatacommunities.org/id/metropolitan-district-council/wolverhampton","Aidapt Bathrooms Limited","238597","49.50","Equipment - Purchase","130117631","27/04/16","Independent Living Service","Independent Living Service","R4000"
"Wolverhampton City Council","http://opendatacommunities.org/id/metropolitan-district-council/wolverhampton","Aidapt Bathrooms Limited","238598","1,592.00","Equipment - Purchase","130117632","27/04/16","Independent Living Service","Independent Living Service","R4000"
"Wolverhampton City Council","http://opendatacommunities.org/id/metropolitan-district-council/wolverhampton","Aidapt Bathrooms Limited","236762","895.00","Equipment - Purchase","130115767","13/04/16","Independent Living Service","Independent Living Service","R4000"
"Wolverhampton City Council","http://opendatacommunities.org/id/metropolitan-district-council/wolverhampton","Aidservice Limited","90054","212.00","Equipment - Purchase","130114949","20/04/16","Independent Living Service","Independent Living Service","R4000"
"Wolverhampton City Council","http://opendatacommunities.org/id/metropolitan-district-council/wolverhampton","Aidservice Limited","90076","349.00","Equipment - Purchase","130115860","27/04/16","Independent Living Service","Independent Living Service","R4000"
"Wolverhampton City Council","http://opendatacommunities.org/id/metropolitan-district-council/wolverhampton","Aidservice Limited","90061","164.00","Equipment - Purchase","130115395","22/04/16","Independent Living Service","Independent Living Service","R4000"
"Wolverhampton City Council","http://opendatacommunities.org/id/metropolitan-district-council/wolverhampton","Aidservice Limited","89991","182.00","Equipment - Purchase","130113898","13/04/16","Independent Living Service","Independent Living Service","R4000"
"Wolverhampton City Council","http://opendatacommunities.org/id/metropolitan-district-council/wolverhampton","Airport Express West Midlands Limited","1311","1,120.00","Client Transport","130114808","06/04/16","School Planning & Resources","Special - Transport","R3042"
"Wolverhampton City Council","http://opendatacommunities.org/id/metropolitan-district-council/wolverhampton","Airport Express West Midlands Limited","1310","625.00","Client Transport","130114807","13/04/16","School Planning & Resources","Special - Transport","R3042"
"Wolverhampton City Council","http://opendatacommunities.org/id/metropolitan-district-council/wolverhampton","Airport-Link","BDW016","1,520.00","Client Transport","130110391","06/04/16","School Planning & Resources","Special - Transport","R3042"
"Wolverhampton City Council","http://opendatacommunities.org/id/metropolitan-district-council/wolverhampton","Airport-Link","BDW018","1,782.97","Client Transport","130114459","01/04/16","School Planning & Resources","Special - Transport","R3042"
"Wolverhampton City Council","http://opendatacommunities.org/id/metropolitan-district-council/wolverhampton","Airport-Link","BDW019","1,710.00","Client Transport","130114460","01/04/16","School Planning & Resources","Special - Transport","R3042"
"Wolverhampton City Council","http://opendatacommunities.org/id/metropolitan-district-council/wolverhampton","Airport-Link","BDW015","1,573.76","Client Transport","130110390","06/04/16","School Planning & Resources","Special - Transport","R3042"
"Wolverhampton City Council","http://opendatacommunities.org/id/metropolitan-district-council/wolverhampton","Alarm","26361.","527.00","Subscriptions","130115137","08/04/16","Audit Services","Risk Management & Insurance","R4701"
"Wolverhampton City Council","http://opendatacommunities.org/id/metropolitan-district-council/wolverhampton","Aldersley High Sch/Aldersley Acad Tr","inv0169","47,448.61","Services - Professional Fees","130117562","27/04/16","Schools","Dunstall Hill Primary School","R4400"
"Wolverhampton City Council","http://opendatacommunities.org/id/metropolitan-district-council/wolverhampton","Aldersley High Sch/Aldersley Acad Tr","SEN Mainstream Top Ups Spring 2015-16 ALD","3,095.81","Grant Payments","190220205","06/04/16","Schools","High Needs Top Up -Mainstream Schools/Academies","R4700"
"Wolverhampton City Council","http://opendatacommunities.org/id/metropolitan-district-council/wolverhampton","Aldersley High Sch/Aldersley Acad Tr","SEN Top up for GS ALD","4,347.95","Grant Payments","190223140","20/04/16","Schools","High Needs Top Up -Mainstream Schools/Academies","R4700"
"Wolverhampton City Council","http://opendatacommunities.org/id/metropolitan-district-council/wolverhampton","Aldersley High Sch/Aldersley Acad Tr","SEN Resource Base Top Ups Spring 2015-16 ALD","10,180.84","Grant Payments","190219621","01/04/16","Schools","High Needs Top Up -Mainstream Schools/Academies","R4700"
"Wolverhampton City Council","http://opendatacommunities.org/id/metropolitan-district-council/wolverhampton","Aldridge Trimming","21632","85.00","Equipment - Purchase","190219313","01/04/16","Fleet Services","Fleet Management","R4000"
"Wolverhampton City Council","http://opendatacommunities.org/id/metropolitan-district-council/wolverhampton","Aldridge Trimming","21785","240.00","Equipment - Purchase","190221486","13/04/16","Fleet Services","Fleet Management","R4000"
"Wolverhampton City Council","http://opendatacommunities.org/id/metropolitan-district-council/wolverhampton","All Saints Action Network Limited","102773","268.00","Room Hire","130115118","06/04/16","Transformation - Public Health","Transformation","R2201"
"Wolverhampton City Council","http://opendatacommunities.org/id/metropolitan-district-council/wolverhampton","All Saints Action Network Limited","102779","727.00","Room Hire","130115119","06/04/16","Commissioning","Public Health Commissioning","R2201"
"Wolverhampton City Council","http://opendatacommunities.org/id/metropolitan-district-council/wolverhampton","All Saints Action Network Limited","Double Funding NEF  Spr 16","721.80","TPP - Private Nursery Education Funding","190219521","01/04/16","Childrens Centres & Early Years","Early Years Non Maintained Schools","R5035"
"Wolverhampton City Council","http://opendatacommunities.org/id/metropolitan-district-council/wolverhampton","All Saints Pharmacy","SMSCOSQ Q42015","120.00","TPP - Public Health Contracts","190224350","22/04/16","Contracts","Alcohol and Drug","R5060"
"Wolverhampton City Council","http://opendatacommunities.org/id/metropolitan-district-council/wolverhampton","All Saints Pharmacy","SMNEPIQ Q42015","70.00","TPP - Public Health Contracts","190224347","22/04/16","Contracts","Alcohol and Drug","R5060"
"Wolverhampton City Council","http://opendatacommunities.org/id/metropolitan-district-council/wolverhampton","All Saints Pharmacy","SMNEPRQ Q42015","31.50","TPP - Public Health Contracts","190224348","22/04/16","Contracts","Alcohol and Drug","R5060"
"Wolverhampton City Council","http://opendatacommunities.org/id/metropolitan-district-council/wolverhampton","All Saints Pharmacy","SMSCOMQ Q42015","505.00","TPP - Public Health Contracts","190224349","22/04/16","Contracts","Alcohol and Drug","R5060"
"Wolverhampton City Council","http://opendatacommunities.org/id/metropolitan-district-council/wolverhampton","All Saints Pharmacy","HLNRTPQ Q32015","64.86","TPP - Public Health Contracts","190224663","22/04/16","Contracts","Healthy Lifestyles","R5060"
"Wolverhampton City Council","http://opendatacommunities.org/id/metropolitan-district-council/wolverhampton","All Saints Pharmacy","HLNRTPQ Q42015","158.81","TPP - Public Health Contracts","190224665","22/04/16","Contracts","Healthy Lifestyles","R5060"
"Wolverhampton City Council","http://opendatacommunities.org/id/metropolitan-district-council/wolverhampton","All Saints Pharmacy","HLNRTPQ Q42015","136.51","TPP - Public Health Contracts","190224664","22/04/16","Contracts","Healthy Lifestyles","R5060"
"Wolverhampton City Council","http://opendatacommunities.org/id/metropolitan-district-council/wolverhampton","All Security Systems Limited","15606","620.00","Services - Security","130116792","20/04/16","Engineering & Civic Centre","Statutory Services (10RM)","R4405"
"Wolverhampton City Council","http://opendatacommunities.org/id/metropolitan-district-council/wolverhampton","Allsigns International Limited","429055","109.32","Equipment - Purchase","130108709","27/04/16","Cleaning & Caretaking Service","Bilston Town Hall","R4000"
"Wolverhampton City Council","http://opendatacommunities.org/id/metropolitan-district-council/wolverhampton","Allsigns International Limited","429055","-109.32","Equipment - Purchase","130108709","27/04/16","Cleaning & Caretaking Service","Bilston Town Hall","R4000"
"Wolverhampton City Council","http://opendatacommunities.org/id/metropolitan-district-council/wolverhampton","Allsigns International Limited","429055","30.43","Equipment - Purchase","130108709","27/04/16","Cleaning & Caretaking Service","Bilston Town Hall","R4000"
"Wolverhampton City Council","http://opendatacommunities.org/id/metropolitan-district-council/wolverhampton","Allsigns International Limited","428996","-109.32","Equipment - Purchase","130108708","27/04/16","Cleaning & Caretaking Service","Bilston Town Hall","R4000"
"Wolverhampton City Council","http://opendatacommunities.org/id/metropolitan-district-council/wolverhampton","Allsigns International Limited","428996","109.32","Equipment - Purchase","130108708","27/04/16","Cleaning & Caretaking Service","Bilston Town Hall","R4000"
"Wolverhampton City Council","http://opendatacommunities.org/id/metropolitan-district-council/wolverhampton","Allsigns International Limited","428996","78.89","Equipment - Purchase","130108708","27/04/16","Cleaning & Caretaking Service","Bilston Town Hall","R4000"
"Wolverhampton City Council","http://opendatacommunities.org/id/metropolitan-district-council/wolverhampton","Allstar Business Solutions Limited","E2006462296","918.97","Petrol","190225289","27/04/16","Fleet Services","Fleet Management","R3000"
"Wolverhampton City Council","http://opendatacommunities.org/id/metropolitan-district-council/wolverhampton","Allstar Business Solutions Limited","E2006386269","674.41","Petrol","190221739","13/04/16","Fleet Services","Fleet Management","R3000"
"Wolverhampton City Council","http://opendatacommunities.org/id/metropolitan-district-council/wolverhampton","Allstar Business Solutions Limited","E2006389055","24.70","Petrol","190221741","13/04/16","Fleet Services","Fleet Management","R3000"
"Wolverhampton City Council","http://opendatacommunities.org/id/metropolitan-district-council/wolverhampton","Allstar Business Solutions Limited","E2006389054","51.37","Petrol","190221740","13/04/16","Fleet Services","Fleet Management","R3000"
"Wolverhampton City Council","http://opendatacommunities.org/id/metropolitan-district-council/wolverhampton","Allstar Business Solutions Limited","E2006463578","14.71","Petrol","190226631","29/04/16","Fleet Services","Fleet Management","R3000"
"Wolverhampton City Council","http://opendatacommunities.org/id/metropolitan-district-council/wolverhampton","Alpharm Limited","SHEHCC16Q Q42015","10.48","TPP - Public Health Contracts","190226440","29/04/16","Contracts","Sexual Health","R5060"
"Wolverhampton City Council","http://opendatacommunities.org/id/metropolitan-district-council/wolverhampton","Alpharm Limited","SHEHCC24Q Q42015","31.44","TPP - Public Health Contracts","190226441","29/04/16","Contracts","Sexual Health","R5060"
"Wolverhampton City Council","http://opendatacommunities.org/id/metropolitan-district-council/wolverhampton","Alpharm Limited","SHEHCLQ Q42015","175.56","TPP - Public Health Contracts","190226443","29/04/16","Contracts","Sexual Health","R5060"
"Wolverhampton City Council","http://opendatacommunities.org/id/metropolitan-district-council/wolverhampton","Alpharm Limited","SHEHCC25Q Q42015","251.52","TPP - Public Health Contracts","190226442","29/04/16","Contracts","Sexual Health","R5060"
"Wolverhampton City Council","http://opendatacommunities.org/id/metropolitan-district-council/wolverhampton","Alpharm Limited","HLNRTPQ Q42015","60.24","TPP - Public Health Contracts","190224662","22/04/16","Contracts","Healthy Lifestyles","R5060"
"Wolverhampton City Council","http://opendatacommunities.org/id/metropolitan-district-council/wolverhampton","Alpharm Limited","SMSCOSQ Q42015","1,053.00","TPP - Public Health Contracts","190224346","22/04/16","Contracts","Alcohol and Drug","R5060"
"Wolverhampton City Council","http://opendatacommunities.org/id/metropolitan-district-council/wolverhampton","Alpharm Limited","SMNEPIQ Q42015","283.00","TPP - Public Health Contracts","190224343","22/04/16","Contracts","Alcohol and Drug","R5060"
"Wolverhampton City Council","http://opendatacommunities.org/id/metropolitan-district-council/wolverhampton","Alpharm Limited","SMNEPRQ Q42015","8.00","TPP - Public Health Contracts","190224344","22/04/16","Contracts","Alcohol and Drug","R5060"
"Wolverhampton City Council","http://opendatacommunities.org/id/metropolitan-district-council/wolverhampton","Alpharm Limited","SMSCOMQ Q42015","1,102.50","TPP - Public Health Contracts","190224345","22/04/16","Contracts","Alcohol and Drug","R5060"
"Wolverhampton City Council","http://opendatacommunities.org/id/metropolitan-district-council/wolverhampton","Alpharm Limited","HLNRTPQ Q42015","121.98","TPP - Public Health Contracts","190224661","22/04/16","Contracts","Healthy Lifestyles","R5060"
"Wolverhampton City Council","http://opendatacommunities.org/id/metropolitan-district-council/wolverhampton","Alphatec 2000 Limited","8024","122.45","Equipment - R & M","130114442","13/04/16","ICTS","Document Centre - General","R4003"
"Wolverhampton City Council","http://opendatacommunities.org/id/metropolitan-district-council/wolverhampton","Angel Springs Limited","2959721","47.10","Provisions (Not for resale)","130114394","01/04/16","School Planning & Resources","Education Data Services","R4101"
"Wolverhampton City Council","http://opendatacommunities.org/id/metropolitan-district-council/wolverhampton","Angel Springs Limited","2680616","34.48","Provisions (Not for resale)","130114390","06/04/16","Revenues & Benefits","Benefits","R4101"
"Wolverhampton City Council","http://opendatacommunities.org/id/metropolitan-district-council/wolverhampton","Angel Springs Limited","2959713","9.72","Provisions (Not for resale)","130115331","08/04/16","Parking Services","Parking Enforcement","R4101"
"Wolverhampton City Council","http://opendatacommunities.org/id/metropolitan-district-council/wolverhampton","Angel Springs Limited","2995640","9.72","Provisions (Not for resale)","130114866","06/04/16","Mental Health Provider","46a, Second Avenue, Low Hill","R4101"
"Wolverhampton City Council","http://opendatacommunities.org/id/metropolitan-district-council/wolverhampton","Angel Springs Limited","2959747","25.92","Provisions (Not for resale)","130114864","06/04/16","Highways Maintenance","Patching","R4101"
"Wolverhampton City Council","http://opendatacommunities.org/id/metropolitan-district-council/wolverhampton","Angel Springs Limited","2995648","13.75","Provisions (Not for resale)","130114868","06/04/16","Enterprise & Skills","Connexions Contract","R4101"
"Wolverhampton City Council","http://opendatacommunities.org/id/metropolitan-district-council/wolverhampton","Angel Springs Limited","2959714","16.78","Provisions (Not for resale)","130114862","13/04/16","Parking Services","Shopmobility","R4101"
"Wolverhampton City Council","http://opendatacommunities.org/id/metropolitan-district-council/wolverhampton","Angel Springs Limited","2995639","20.02","Provisions (Not for resale)","130114865","13/04/16","Parking Services","Parking Enforcement","R4101"
"Wolverhampton City Council","http://opendatacommunities.org/id/metropolitan-district-council/wolverhampton","Angel Springs Limited","2995674","36.80","Provisions (Not for resale)","130114870","06/04/16","Highways Maintenance","Patching","R4101"
"Wolverhampton City Council","http://opendatacommunities.org/id/metropolitan-district-council/wolverhampton","Angel Springs Limited","2479827","19.44","Provisions (Not for resale)","130114841","13/04/16","Mental Health Provider","46a, Second Avenue, Low Hill","R4101"
"Wolverhampton City Council","http://opendatacommunities.org/id/metropolitan-district-council/wolverhampton","Angel Springs Limited","2997154","-18.90","Provisions (Not for resale)","130115332","13/04/16","Engineering & Civic Centre","Civic Centre","R4101"
"Wolverhampton City Council","http://opendatacommunities.org/id/metropolitan-district-council/wolverhampton","Angel Springs Limited","2997155","-18.90","Provisions (Not for resale)","130115333","13/04/16","Engineering & Civic Centre","Civic Centre","R4101"
"Wolverhampton City Council","http://opendatacommunities.org/id/metropolitan-district-council/wolverhampton","Angel Springs Limited","2997156","-18.90","Provisions (Not for resale)","130115334","13/04/16","Engineering & Civic Centre","Civic Centre","R4101"
"Wolverhampton City Council","http://opendatacommunities.org/id/metropolitan-district-council/wolverhampton","Angel Springs Limited","2888778","197.65","Provisions (Not for resale)","130114859","13/04/16","Engineering & Civic Centre","Civic Centre","R4101"
"Wolverhampton City Council","http://opendatacommunities.org/id/metropolitan-district-council/wolverhampton","Angel Springs Limited","2924126","197.65","Provisions (Not for resale)","130114861","13/04/16","Engineering & Civic Centre","Civic Centre","R4101"
"Wolverhampton City Council","http://opendatacommunities.org/id/metropolitan-district-council/wolverhampton","Angel Springs Limited","2853318","197.65","Provisions (Not for resale)","130115792","13/04/16","Engineering & Civic Centre","Civic Centre","R4101"
"Wolverhampton City Council","http://opendatacommunities.org/id/metropolitan-district-council/wolverhampton","Angel Springs Limited","2995672","206.25","Provisions (Not for resale)","130114869","13/04/16","Engineering & Civic Centre","Civic Centre","R4101"
"Wolverhampton City Council","http://opendatacommunities.org/id/metropolitan-district-council/wolverhampton","Angel Springs Limited","2817614","197.65","Provisions (Not for resale)","130114856","13/04/16","Engineering & Civic Centre","Civic Centre","R4101"
"Wolverhampton City Council","http://opendatacommunities.org/id/metropolitan-district-council/wolverhampton","Angel Springs Limited","2782315","197.65","Provisions (Not for resale)","130114852","13/04/16","Engineering & Civic Centre","Civic Centre","R4101"
"Wolverhampton City Council","http://opendatacommunities.org/id/metropolitan-district-council/wolverhampton","Angel Springs Limited","2713822","156.40","Provisions (Not for resale)","130114847","13/04/16","Engineering & Civic Centre","Civic Centre","R4101"
"Wolverhampton City Council","http://opendatacommunities.org/id/metropolitan-district-council/wolverhampton","Angel Springs Limited","2748190","197.65","Provisions (Not for resale)","130114850","13/04/16","Engineering & Civic Centre","Civic Centre","R4101"
"Wolverhampton City Council","http://opendatacommunities.org/id/metropolitan-district-council/wolverhampton","Angel Springs Limited","2817578","10.30","Provisions (Not for resale)","130115316","13/04/16","Parking Services","Shopmobility","R4101"
"Wolverhampton City Council","http://opendatacommunities.org/id/metropolitan-district-council/wolverhampton","Angel Springs Limited","2924093","9.72","Provisions (Not for resale)","130115330","13/04/16","Parking Services","Parking Enforcement","R4101"
"Wolverhampton City Council","http://opendatacommunities.org/id/metropolitan-district-council/wolverhampton","Angel Springs Limited","2782290","15.64","R&M - Departmental planned (external)","130115783","13/04/16","Engineering & Civic Centre","Victoria Square, Block 11","R2001"
"Wolverhampton City Council","http://opendatacommunities.org/id/metropolitan-district-council/wolverhampton","Angel Springs Limited","2888751","15.64","R&M - Departmental planned (external)","130115793","13/04/16","Engineering & Civic Centre","Victoria Square, Block 11","R2001"
"Wolverhampton City Council","http://opendatacommunities.org/id/metropolitan-district-council/wolverhampton","Angel Springs Limited","2924099","15.64","R&M - Departmental planned (external)","130115794","13/04/16","Engineering & Civic Centre","Victoria Square, Block 11","R2001"
"Wolverhampton City Council","http://opendatacommunities.org/id/metropolitan-district-council/wolverhampton","Angel Springs Limited","2959720","15.64","R&M - Departmental planned (external)","130115795","13/04/16","Engineering & Civic Centre","Victoria Square, Block 11","R2001"
"Wolverhampton City Council","http://opendatacommunities.org/id/metropolitan-district-council/wolverhampton","Angel Springs Limited","2748163","15.64","R&M - Departmental planned (external)","130115782","13/04/16","Engineering & Civic Centre","Victoria Square, Block 11","R2001"
"Wolverhampton City Council","http://opendatacommunities.org/id/metropolitan-district-council/wolverhampton","Angel Springs Limited","2853292","15.64","R&M - Departmental planned (external)","130115791","13/04/16","Engineering & Civic Centre","Victoria Square, Block 11","R2001"
"Wolverhampton City Council","http://opendatacommunities.org/id/metropolitan-district-council/wolverhampton","Angel Springs Limited","2646257","15.64","R&M - Departmental planned (external)","130115780","13/04/16","Engineering & Civic Centre","Victoria Square, Block 11","R2001"
"Wolverhampton City Council","http://opendatacommunities.org/id/metropolitan-district-council/wolverhampton","Angel Springs Limited","2817586","15.64","R&M - Departmental planned (external)","130115785","13/04/16","Engineering & Civic Centre","Victoria Square, Block 11","R2001"
"Wolverhampton City Council","http://opendatacommunities.org/id/metropolitan-district-council/wolverhampton","Angel Springs Limited","2479835","15.64","R&M - Departmental planned (external)","130115772","13/04/16","Engineering & Civic Centre","Victoria Square, Block 11","R2001"
"Wolverhampton City Council","http://opendatacommunities.org/id/metropolitan-district-council/wolverhampton","Angel Springs Limited","2512876","15.64","R&M - Departmental planned (external)","130115774","13/04/16","Engineering & Civic Centre","Victoria Square, Block 11","R2001"
"Wolverhampton City Council","http://opendatacommunities.org/id/metropolitan-district-council/wolverhampton","Angel Springs Limited","2579273","15.64","R&M - Departmental planned (external)","130115777","13/04/16","Engineering & Civic Centre","Victoria Square, Block 11","R2001"
"Wolverhampton City Council","http://opendatacommunities.org/id/metropolitan-district-council/wolverhampton","Angel Springs Limited","2997157","-18.90","Provisions (Not for resale)","130115335","13/04/16","Engineering & Civic Centre","Civic Centre","R4101"
"Wolverhampton City Council","http://opendatacommunities.org/id/metropolitan-district-council/wolverhampton","Angel Springs Limited","2997159","-18.90","Provisions (Not for resale)","130115336","13/04/16","Engineering & Civic Centre","Civic Centre","R4101"
"Wolverhampton City Council","http://opendatacommunities.org/id/metropolitan-district-council/wolverhampton","Angel Springs Limited","2997160","-18.90","Provisions (Not for resale)","130115337","13/04/16","Engineering & Civic Centre","Civic Centre","R4101"
"Wolverhampton City Council","http://opendatacommunities.org/id/metropolitan-district-council/wolverhampton","Angel Springs Limited","2997161","-18.90","Provisions (Not for resale)","130115338","13/04/16","Engineering & Civic Centre","Civic Centre","R4101"
"Wolverhampton City Council","http://opendatacommunities.org/id/metropolitan-district-council/wolverhampton","Angel Springs Limited","2818695","150.00","Provisions (Not for resale)","130091208","15/04/16","Independent Living Service","Independent Living Service","R4101"
"Wolverhampton City Council","http://opendatacommunities.org/id/metropolitan-district-council/wolverhampton","Angel Springs Limited","3032116","31.28","Provisions (Not for resale)","130116288","27/04/16","Childrens Centres & Early Years","Children�s Village Children Centre","R4101"
"Wolverhampton City Council","http://opendatacommunities.org/id/metropolitan-district-council/wolverhampton","Angel Springs Limited","3032081","183.88","Provisions (Not for resale)","130116067","27/04/16","Democracy","Members Expenses","R4101"
"Wolverhampton City Council","http://opendatacommunities.org/id/metropolitan-district-council/wolverhampton","Angel Springs Limited","2995646","12.96","Provisions (Not for resale)","130114867","27/04/16","School Planning & Resources","Education Data Services","R4101"
"Wolverhampton City Council","http://opendatacommunities.org/id/metropolitan-district-council/wolverhampton","Angel Springs Limited","3032118","64.80","Provisions (Not for resale)","130117644","27/04/16","Fleet Services","Fleet Management","R4101"
"Wolverhampton City Council","http://opendatacommunities.org/id/metropolitan-district-council/wolverhampton","Ansador Limited","5145","292.00","R&M - Departmental planned (external)","130117078","20/04/16","Schools","Colton Hills Community School","R2001"
"Wolverhampton City Council","http://opendatacommunities.org/id/metropolitan-district-council/wolverhampton","Apcoa Parking (UK) Limited","232486","51,222.07","TPP - Traffic Management","130116051","27/04/16","Parking Services","Parking Enforcement","R5050"
"Wolverhampton City Council","http://opendatacommunities.org/id/metropolitan-district-council/wolverhampton","Apetito Limited","9001678265","1,256.59","Provisions (Resale)","130114574","27/04/16","Catering","Meals on Wheels","R4102"
"Wolverhampton City Council","http://opendatacommunities.org/id/metropolitan-district-council/wolverhampton","Apetito Limited","9001671535","1,634.10","Provisions (Resale)","130113660","13/04/16","Catering","Meals on Wheels","R4102"
"Wolverhampton City Council","http://opendatacommunities.org/id/metropolitan-district-council/wolverhampton","Apetito Limited","9001669205","1,109.13","Provisions (Resale)","130112747","13/04/16","Catering","Meals on Wheels","R4102"
"Wolverhampton City Council","http://opendatacommunities.org/id/metropolitan-district-council/wolverhampton","Apetito Limited","9001675697","1,091.43","Provisions (Resale)","130114207","15/04/16","Catering","Meals on Wheels","R4102"
"Wolverhampton City Council","http://opendatacommunities.org/id/metropolitan-district-council/wolverhampton","Apetito Limited","9001673502","1,017.17","Provisions (Resale)","130113899","15/04/16","Catering","Meals on Wheels","R4102"
"Wolverhampton City Council","http://opendatacommunities.org/id/metropolitan-district-council/wolverhampton","Apetito Limited","9001682018","901.45","Provisions (Resale)","130115393","29/04/16","Catering","Meals on Wheels","R4102"
"Wolverhampton City Council","http://opendatacommunities.org/id/metropolitan-district-council/wolverhampton","AQA Education","21053402","-31.60","Exam Expenses (Non-Employee)","130115312","29/04/16","Adult Education","Foundation Studies Delivery Area","R4630"
"Wolverhampton City Council","http://opendatacommunities.org/id/metropolitan-district-council/wolverhampton","AQA Education","77798","45.00","Grant Payments","130117145","29/04/16","Adult Education","Foundation Studies Delivery Area","R4700"
"Wolverhampton City Council","http://opendatacommunities.org/id/metropolitan-district-council/wolverhampton","Aqua Force Special Waste Limited","35411","220.00","Refuse Collection","130117976","27/04/16","Leisure Services","WV Active Catering","R2704"
"Wolverhampton City Council","http://opendatacommunities.org/id/metropolitan-district-council/wolverhampton","Aquajoy Bathlifts Limited","0000951543","2,450.00","Equipment - R & M","130115718","29/04/16","Independent Living Service","Independent Living Service","R4003"
"Wolverhampton City Council","http://opendatacommunities.org/id/metropolitan-district-council/wolverhampton","Archive Servs Data&Records Mngt Limited","0006057","28.50","Storage","130116011","13/04/16","Childrens Centres & Early Years","Children�s Village Children Centre","R4910"
"Wolverhampton City Council","http://opendatacommunities.org/id/metropolitan-district-council/wolverhampton","Argus Fire Protection Co.Limited","34916","1,455.00","Equipment - Purchase","130115801","13/04/16","Engineering & Civic Centre","Civic Centre","R4000"
"Wolverhampton City Council","http://opendatacommunities.org/id/metropolitan-district-council/wolverhampton","Arjohuntleigh UK","51361","1,150.00","Equipment - Purchase","130113146","13/04/16","Older People Provider Services","Older People Provider Management","R4000"
"Wolverhampton City Council","http://opendatacommunities.org/id/metropolitan-district-council/wolverhampton","Arjohuntleigh UK","50291","5,037.83","Equipment - Purchase","130111610","01/04/16","Older People Provider Services","Older People Provider Management","R4000"
"Wolverhampton City Council","http://opendatacommunities.org/id/metropolitan-district-council/wolverhampton","Arnold Clark Finance Limited","HI1986036","117.60","Hire of Vehicles","190222356","13/04/16","Fleet Services","Fleet Management","R3200"
"Wolverhampton City Council","http://opendatacommunities.org/id/metropolitan-district-council/wolverhampton","Arnold Clark Finance Limited","HI1986383","117.60","Hire of Vehicles","190222358","13/04/16","Fleet Services","Fleet Management","R3200"
"Wolverhampton City Council","http://opendatacommunities.org/id/metropolitan-district-council/wolverhampton","Arnold Clark Finance Limited","HI1986384","117.60","Hire of Vehicles","190222359","13/04/16","Fleet Services","Fleet Management","R3200"
"Wolverhampton City Council","http://opendatacommunities.org/id/metropolitan-district-council/wolverhampton","Arnold Clark Finance Limited","HI1986385","117.60","Hire of Vehicles","190222360","13/04/16","Fleet Services","Fleet Management","R3200"
"Wolverhampton City Council","http://opendatacommunities.org/id/metropolitan-district-council/wolverhampton","Arnold Clark Finance Limited","HI1986386","117.60","Hire of Vehicles","190222361","13/04/16","Fleet Services","Fleet Management","R3200"
"Wolverhampton City Council","http://opendatacommunities.org/id/metropolitan-district-council/wolverhampton","Arnold Clark Finance Limited","HI1989884","117.60","Hire of Vehicles","190222362","13/04/16","Fleet Services","Fleet Management","R3200"
"Wolverhampton City Council","http://opendatacommunities.org/id/metropolitan-district-council/wolverhampton","Arnold Clark Finance Limited","HI1989885","117.60","Hire of Vehicles","190222363","13/04/16","Fleet Services","Fleet Management","R3200"
"Wolverhampton City Council","http://opendatacommunities.org/id/metropolitan-district-council/wolverhampton","Arnold Clark Finance Limited","HI1989886","117.60","Hire of Vehicles","190222364","13/04/16","Fleet Services","Fleet Management","R3200"
"Wolverhampton City Council","http://opendatacommunities.org/id/metropolitan-district-council/wolverhampton","Arnold Clark Finance Limited","HI1989887","117.60","Hire of Vehicles","190222365","13/04/16","Fleet Services","Fleet Management","R3200"
"Wolverhampton City Council","http://opendatacommunities.org/id/metropolitan-district-council/wolverhampton","Arnold Clark Finance Limited","HI1989888","117.60","Hire of Vehicles","190222366","13/04/16","Fleet Services","Fleet Management","R3200"
"Wolverhampton City Council","http://opendatacommunities.org/id/metropolitan-district-council/wolverhampton","Arnold Clark Finance Limited","HI1989889","117.60","Hire of Vehicles","190222367","13/04/16","Fleet Services","Fleet Management","R3200"
"Wolverhampton City Council","http://opendatacommunities.org/id/metropolitan-district-council/wolverhampton","Arnold Clark Finance Limited","HI1986037","29.40","Hire of Vehicles","190222357","13/04/16","Fleet Services","Fleet Management","R3200"
"Wolverhampton City Council","http://opendatacommunities.org/id/metropolitan-district-council/wolverhampton","Arnold Clark Finance Limited","HI1985797","34.00","Hire of Vehicles","190222355","13/04/16","Fleet Services","Fleet Management","R3200"
"Wolverhampton City Council","http://opendatacommunities.org/id/metropolitan-district-council/wolverhampton","Arthur Brett (Catering) Limited","ID821538","95.97","Provisions (Resale)","130115420","13/04/16","Culture Arts & Heritage","Bantock - Tea Rooms","R4102"
"Wolverhampton City Council","http://opendatacommunities.org/id/metropolitan-district-council/wolverhampton","Arthur Brett (Catering) Limited","ID844070","117.79","Provisions (Resale)","130114685","13/04/16","Culture Arts & Heritage","Art Gallery Tea Room","R4102"
"Wolverhampton City Council","http://opendatacommunities.org/id/metropolitan-district-council/wolverhampton","Arthur Brett (Catering) Limited","ID844143","92.41","Provisions (Resale)","130114686","13/04/16","Culture Arts & Heritage","Bantock - Tea Rooms","R4102"
"Wolverhampton City Council","http://opendatacommunities.org/id/metropolitan-district-council/wolverhampton","Arthur Brett (Catering) Limited","ID803247","7.39","Provisions (Resale)","130115415","13/04/16","Learning Disability Provider","Duke Street Bungalows","R4102"
"Wolverhampton City Council","http://opendatacommunities.org/id/metropolitan-district-council/wolverhampton","Arthur Brett (Catering) Limited","ID844655","8.05","Provisions (Resale)","130115218","13/04/16","Learning Disability Provider","Duke Street Bungalows","R4102"
"Wolverhampton City Council","http://opendatacommunities.org/id/metropolitan-district-council/wolverhampton","Arthur Brett (Catering) Limited","ID844653","11.89","Provisions (Resale)","130115217","13/04/16","Learning Disability Provider","Duke Street Bungalows","R4102"
"Wolverhampton City Council","http://opendatacommunities.org/id/metropolitan-district-council/wolverhampton","Arthur Brett (Catering) Limited","ID821460","20.70","Provisions (Resale)","130115419","13/04/16","Older People Provider Services","Ekta Day Centre","R4102"
"Wolverhampton City Council","http://opendatacommunities.org/id/metropolitan-district-council/wolverhampton","Arthur Brett (Catering) Limited","ID816066","22.78","Provisions (Resale)","130115416","13/04/16","Learning Disability Provider","Duke Street Bungalows","R4102"
"Wolverhampton City Council","http://opendatacommunities.org/id/metropolitan-district-council/wolverhampton","Arthur Brett (Catering) Limited","2902161","190.15","Provisions (Resale)","130113776","13/04/16","Catering","Bert Williams Leisure Centre Caf�","R4102"
"Wolverhampton City Council","http://opendatacommunities.org/id/metropolitan-district-council/wolverhampton","Arthur Brett (Catering) Limited","2902162","1,351.29","Provisions (Resale)","130113777","06/04/16","Catering","Civic Centre Catering","R4102"
"Wolverhampton City Council","http://opendatacommunities.org/id/metropolitan-district-council/wolverhampton","Arthur Brett (Catering) Limited","ID806408","78.20","Provisions (Resale)","130113519","06/04/16","Leisure Services","WV Active Catering","R4102"
"Wolverhampton City Council","http://opendatacommunities.org/id/metropolitan-district-council/wolverhampton","Arthur Brett (Catering) Limited","ID842434","16.98","Provisions (Resale)","130114607","06/04/16","Learning Disability Provider","Duke Street Bungalows","R4102"
"Wolverhampton City Council","http://opendatacommunities.org/id/metropolitan-district-council/wolverhampton","Arthur Brett (Catering) Limited","ID842488","35.92","Provisions (Resale)","130114608","06/04/16","Learning Disability Provider","Duke Street Bungalows","R4102"
"Wolverhampton City Council","http://opendatacommunities.org/id/metropolitan-district-council/wolverhampton","Arthur Brett (Catering) Limited","ID840620","23.80","Provisions (Resale)","130113969","06/04/16","Learning Disability Provider","Duke Street Bungalows","R4102"
"Wolverhampton City Council","http://opendatacommunities.org/id/metropolitan-district-council/wolverhampton","Arthur Brett (Catering) Limited","CN28300","-12.58","Provisions (Resale)","130114744","06/04/16","Culture Arts & Heritage","Bantock - Tea Rooms","R4102"
"Wolverhampton City Council","http://opendatacommunities.org/id/metropolitan-district-council/wolverhampton","Arthur Brett (Catering) Limited","ID845104","31.04","Provisions (Resale)","130115879","15/04/16","Older People Provider Services","Blakenhall Resource Centre","R4102"
"Wolverhampton City Council","http://opendatacommunities.org/id/metropolitan-district-council/wolverhampton","Arthur Brett (Catering) Limited","ID843736","24.70","Provisions (Resale)","130114684","15/04/16","Older People Provider Services","Blakenhall Resource Centre","R4102"
"Wolverhampton City Council","http://opendatacommunities.org/id/metropolitan-district-council/wolverhampton","Arthur Brett (Catering) Limited","ID844660","24.63","Provisions (Resale)","130115669","15/04/16","Learning Disability Provider","Duke Street Bungalows","R4102"
"Wolverhampton City Council","http://opendatacommunities.org/id/metropolitan-district-council/wolverhampton","Arthur Brett (Catering) Limited","ID844657","3.73","Provisions (Resale)","130115668","15/04/16","Learning Disability Provider","Duke Street Bungalows","R4102"
"Wolverhampton City Council","http://opendatacommunities.org/id/metropolitan-district-council/wolverhampton","Arthur Brett (Catering) Limited","ID845105","36.77","Provisions (Resale)","130115671","15/04/16","Learning Disability Provider","Duke Street Bungalows","R4102"
"Wolverhampton City Council","http://opendatacommunities.org/id/metropolitan-district-council/wolverhampton","Arthur Brett (Catering) Limited","ID844663","13.30","Provisions (Resale)","130116201","15/04/16","Learning Disability Provider","Duke Street Bungalows","R4102"
"Wolverhampton City Council","http://opendatacommunities.org/id/metropolitan-district-council/wolverhampton","Arthur Brett (Catering) Limited","ID844662","9.00","Provisions (Resale)","130116200","15/04/16","Learning Disability Provider","Duke Street Bungalows","R4102"
"Wolverhampton City Council","http://opendatacommunities.org/id/metropolitan-district-council/wolverhampton","Arthur Brett (Catering) Limited","2902164","27,028.47","Provisions (Resale)","130113778","15/04/16","Catering","Education Catering - General Overheads","R4102"
"Wolverhampton City Council","http://opendatacommunities.org/id/metropolitan-district-council/wolverhampton","Arthur Brett (Catering) Limited","2902164","-27,028.47","Provisions (Resale)","130113778","15/04/16","Catering","Education Catering - General Overheads","R4102"
"Wolverhampton City Council","http://opendatacommunities.org/id/metropolitan-district-council/wolverhampton","Arthur Brett (Catering) Limited","2902164","27,010.67","Provisions (Resale)","130113778","15/04/16","Catering","Education Catering - General Overheads","R4102"
"Wolverhampton City Council","http://opendatacommunities.org/id/metropolitan-district-council/wolverhampton","Arthur Brett (Catering) Limited","ID820723","18.34","Provisions (Resale)","130115418","27/04/16","Older People Provider Services","Blakenhall Resource Centre","R4102"
"Wolverhampton City Council","http://opendatacommunities.org/id/metropolitan-district-council/wolverhampton","Arthur Brett (Catering) Limited","ID845115","52.65","Provisions (Resale)","130115672","27/04/16","Culture Arts & Heritage","Bantock - Tea Rooms","R4102"
"Wolverhampton City Council","http://opendatacommunities.org/id/metropolitan-district-council/wolverhampton","Arthur Brett (Catering) Limited","ID845650","9.72","Provisions (Resale)","130117040","27/04/16","Learning Disability Provider","Duke Street Bungalows","R4102"
"Wolverhampton City Council","http://opendatacommunities.org/id/metropolitan-district-council/wolverhampton","Arthur Brett (Catering) Limited","ID845661","7.46","Provisions (Resale)","130117041","27/04/16","Learning Disability Provider","Duke Street Bungalows","R4102"
"Wolverhampton City Council","http://opendatacommunities.org/id/metropolitan-district-council/wolverhampton","Arthur Brett (Catering) Limited","ID846524","106.65","Provisions (Resale)","130116908","27/04/16","Culture Arts & Heritage","Bantock - Tea Rooms","R4102"
"Wolverhampton City Council","http://opendatacommunities.org/id/metropolitan-district-council/wolverhampton","Arthur Brett (Catering) Limited","ID848455","96.90","Provisions (Resale)","130117391","27/04/16","Culture Arts & Heritage","Art Gallery Tea Room","R4102"
"Wolverhampton City Council","http://opendatacommunities.org/id/metropolitan-district-council/wolverhampton","Arthur Brett (Catering) Limited","ID848488","140.79","Provisions (Resale)","130117392","27/04/16","Culture Arts & Heritage","Bantock - Tea Rooms","R4102"
"Wolverhampton City Council","http://opendatacommunities.org/id/metropolitan-district-council/wolverhampton","Arthur Brett (Catering) Limited","ID842788","30.31","Provisions (Resale)","130114090","27/04/16","Older People Provider Services","Blakenhall Resource Centre","R4102"
"Wolverhampton City Council","http://opendatacommunities.org/id/metropolitan-district-council/wolverhampton","Arthur Brett (Catering) Limited","ID846478","32.11","Provisions (Resale)","130116907","27/04/16","Older People Provider Services","Blakenhall Resource Centre","R4102"
"Wolverhampton City Council","http://opendatacommunities.org/id/metropolitan-district-council/wolverhampton","Arthur Brett (Catering) Limited","ID848513","40.22","Provisions (Resale)","130117393","27/04/16","Leisure Services","WV Active Catering","R4102"
"Wolverhampton City Council","http://opendatacommunities.org/id/metropolitan-district-council/wolverhampton","Arthur Brett (Catering) Limited","ID847578","108.93","Provisions (Resale)","130117042","27/04/16","Culture Arts & Heritage","Art Gallery Tea Room","R4102"
"Wolverhampton City Council","http://opendatacommunities.org/id/metropolitan-district-council/wolverhampton","Arthur Brett (Catering) Limited","ID848717","32.05","Provisions (Resale)","130117717","27/04/16","Older People Provider Services","Blakenhall Resource Centre","R4102"
"Wolverhampton City Council","http://opendatacommunities.org/id/metropolitan-district-council/wolverhampton","Arthur Brett (Catering) Limited","ID845912","33.77","Provisions (Resale)","130117489","27/04/16","Learning Disability Provider","Duke Street Bungalows","R4102"
"Wolverhampton City Council","http://opendatacommunities.org/id/metropolitan-district-council/wolverhampton","Arthur Brett (Catering) Limited","ID845900","18.02","Provisions (Resale)","130117487","27/04/16","Learning Disability Provider","Duke Street Bungalows","R4102"
"Wolverhampton City Council","http://opendatacommunities.org/id/metropolitan-district-council/wolverhampton","Arthur Brett (Catering) Limited","ID845903","4.72","Provisions (Resale)","130117488","27/04/16","Learning Disability Provider","Duke Street Bungalows","R4102"
"Wolverhampton City Council","http://opendatacommunities.org/id/metropolitan-district-council/wolverhampton","Arthur Brett (Catering) Limited","ID838902","2.69","Provisions (Resale)","130112757","06/04/16","Learning Disability Provider","Duke Street Bungalows","R4102"
"Wolverhampton City Council","http://opendatacommunities.org/id/metropolitan-district-council/wolverhampton","Arthur Brett (Catering) Limited","ID838901","22.55","Provisions (Resale)","130112756","06/04/16","Learning Disability Provider","Duke Street Bungalows","R4102"
"Wolverhampton City Council","http://opendatacommunities.org/id/metropolitan-district-council/wolverhampton","Arthur Brett (Catering) Limited","ID846222","126.20","Provisions (Resale)","130116521","20/04/16","Culture Arts & Heritage","Bantock - Tea Rooms","R4102"
"Wolverhampton City Council","http://opendatacommunities.org/id/metropolitan-district-council/wolverhampton","Arthur Brett (Catering) Limited","ID844833","24.46","Provisions (Resale)","130116728","20/04/16","Learning Disability Provider","Duke Street Bungalows","R4102"
"Wolverhampton City Council","http://opendatacommunities.org/id/metropolitan-district-council/wolverhampton","Arthur Brett (Catering) Limited","ID845106","23.48","Provisions (Resale)","130116730","20/04/16","Learning Disability Provider","Duke Street Bungalows","R4102"
"Wolverhampton City Council","http://opendatacommunities.org/id/metropolitan-district-council/wolverhampton","Arthur Brett (Catering) Limited","ID844835","4.62","Provisions (Resale)","130116729","20/04/16","Learning Disability Provider","Duke Street Bungalows","R4102"
"Wolverhampton City Council","http://opendatacommunities.org/id/metropolitan-district-council/wolverhampton","Arthur Brett (Catering) Limited","WI902300","171.54","Provisions (Resale)","130115226","20/04/16","Contracts","Children Diet and Physical Activity","R4102"
"Wolverhampton City Council","http://opendatacommunities.org/id/metropolitan-district-council/wolverhampton","Arthur Brett (Catering) Limited","ID845367","33.24","Provisions (Resale)","130115881","20/04/16","Culture Arts & Heritage","Bantock - Tea Rooms","R4102"
"Wolverhampton City Council","http://opendatacommunities.org/id/metropolitan-district-council/wolverhampton","Arthur Brett (Catering) Limited","ID844994","21.74","Provisions (Resale)","130115670","20/04/16","Leisure Services","WV Active Catering","R4102"
"Wolverhampton City Council","http://opendatacommunities.org/id/metropolitan-district-council/wolverhampton","Arthur Brett (Catering) Limited","ID845366","109.54","Provisions (Resale)","130115880","22/04/16","Culture Arts & Heritage","Art Gallery Tea Room","R4102"
"Wolverhampton City Council","http://opendatacommunities.org/id/metropolitan-district-council/wolverhampton","Arthur Brett (Catering) Limited","ID846552","110.36","Provisions (Resale)","130116732","22/04/16","Culture Arts & Heritage","Art Gallery Tea Room","R4102"
"Wolverhampton City Council","http://opendatacommunities.org/id/metropolitan-district-council/wolverhampton","Arthur Brett (Catering) Limited","ID846509","73.01","Provisions (Resale)","130116731","22/04/16","Culture Arts & Heritage","Bantock - Tea Rooms","R4102"
"Wolverhampton City Council","http://opendatacommunities.org/id/metropolitan-district-council/wolverhampton","Arthur Brett (Catering) Limited","ID801214","36.48","Provisions (Resale)","130115414","22/04/16","Older People Provider Services","Bradley Lodge Resource Centre","R4102"
"Wolverhampton City Council","http://opendatacommunities.org/id/metropolitan-district-council/wolverhampton","Arthur Brett (Catering) Limited","ID843521","100.08","Provisions (Resale)","130114609","22/04/16","Leisure Services","WV Active Catering","R4102"
"Wolverhampton City Council","http://opendatacommunities.org/id/metropolitan-district-council/wolverhampton","Arthur Brett (Catering) Limited","WI902289","409.84","Provisions (Resale)","130113290","01/04/16","Contracts","Children Diet and Physical Activity","R4102"
"Wolverhampton City Council","http://opendatacommunities.org/id/metropolitan-district-council/wolverhampton","Arthur Brett (Catering) Limited","ID841609","48.46","Provisions (Resale)","130112966","01/04/16","Older People Provider Services","Blakenhall Resource Centre","R4102"
"Wolverhampton City Council","http://opendatacommunities.org/id/metropolitan-district-council/wolverhampton","Arthur Brett (Catering) Limited","ID837026","49.43","Provisions (Resale)","130112039","01/04/16","Older People Provider Services","Bradley Lodge Resource Centre","R4102"
"Wolverhampton City Council","http://opendatacommunities.org/id/metropolitan-district-council/wolverhampton","Arthur Brett (Catering) Limited","ID837782","43.45","Provisions (Resale)","130111439","01/04/16","Older People Provider Services","Bradley Lodge Resource Centre","R4102"
"Wolverhampton City Council","http://opendatacommunities.org/id/metropolitan-district-council/wolverhampton","Arthur Brett (Catering) Limited","ID837913","40.65","Provisions (Resale)","130112515","01/04/16","Older People Provider Services","Bradley Lodge Resource Centre","R4102"
"Wolverhampton City Council","http://opendatacommunities.org/id/metropolitan-district-council/wolverhampton","Arthur Brett (Catering) Limited","ID841640","49.65","Provisions (Resale)","130113216","01/04/16","Older People Provider Services","Bradley Lodge Resource Centre","R4102"
"Wolverhampton City Council","http://opendatacommunities.org/id/metropolitan-district-council/wolverhampton","Arthur Brett (Catering) Limited","ID842438","101.80","Provisions (Resale)","130113217","01/04/16","Culture Arts & Heritage","Art Gallery Tea Room","R4102"
"Wolverhampton City Council","http://opendatacommunities.org/id/metropolitan-district-council/wolverhampton","Arthur Brett (Catering) Limited","ID843274","140.25","Provisions (Resale)","130114091","01/04/16","Culture Arts & Heritage","Bantock - Tea Rooms","R4102"
"Wolverhampton City Council","http://opendatacommunities.org/id/metropolitan-district-council/wolverhampton","Arthur Brett (Catering) Limited","ID843186","136.28","Provisions (Resale)","130113973","01/04/16","Culture Arts & Heritage","Bantock - Tea Rooms","R4102"
"Wolverhampton City Council","http://opendatacommunities.org/id/metropolitan-district-council/wolverhampton","Arthur Brett (Catering) Limited","ID840633","16.95","Provisions (Resale)","130113970","01/04/16","Learning Disability Provider","Duke Street Bungalows","R4102"
"Wolverhampton City Council","http://opendatacommunities.org/id/metropolitan-district-council/wolverhampton","Arthur Brett (Catering) Limited","ID842432","6.75","Provisions (Resale)","130113972","01/04/16","Learning Disability Provider","Duke Street Bungalows","R4102"
"Wolverhampton City Council","http://opendatacommunities.org/id/metropolitan-district-council/wolverhampton","Arthur Brett (Catering) Limited","ID842431","12.28","Provisions (Resale)","130113971","01/04/16","Learning Disability Provider","Duke Street Bungalows","R4102"
"Wolverhampton City Council","http://opendatacommunities.org/id/metropolitan-district-council/wolverhampton","Arthur Brett (Catering) Limited","WI902267","409.84","Provisions (Resale)","130110910","01/04/16","Contracts","Children Diet and Physical Activity","R4102"
"Wolverhampton City Council","http://opendatacommunities.org/id/metropolitan-district-council/wolverhampton","Arthur Brett (Catering) Limited","3101163","197.76","Provisions (Resale)","130113782","01/04/16","Catering","Meals on Wheels","R4102"
"Wolverhampton City Council","http://opendatacommunities.org/id/metropolitan-district-council/wolverhampton","Arthur Brett (Catering) Limited","ID840432","12.99","Provisions (Resale)","130113215","01/04/16","Learning Disability Provider","Duke Street Bungalows","R4102"
"Wolverhampton City Council","http://opendatacommunities.org/id/metropolitan-district-council/wolverhampton","Arthur Brett (Catering) Limited","ID840431","6.68","Provisions (Resale)","130113214","01/04/16","Learning Disability Provider","Duke Street Bungalows","R4102"
"Wolverhampton City Council","http://opendatacommunities.org/id/metropolitan-district-council/wolverhampton","Arthur Brett (Catering) Limited","2902163","208.21","Provisions (Resale)","130115329","08/04/16","Catering","Meals on Wheels","R4102"
"Wolverhampton City Council","http://opendatacommunities.org/id/metropolitan-district-council/wolverhampton","Arthur Brett (Catering) Limited","WI902257","415.80","Provisions (Resale)","130110473","08/04/16","Contracts","Children Diet and Physical Activity","R4102"
"Wolverhampton City Council","http://opendatacommunities.org/id/metropolitan-district-council/wolverhampton","Arthur Brett (Catering) Limited","WI902278","409.84","Provisions (Resale)","130112066","08/04/16","Contracts","Children Diet and Physical Activity","R4102"
"Wolverhampton City Council","http://opendatacommunities.org/id/metropolitan-district-council/wolverhampton","Arthur Brett (Catering) Limited","ID843497","119.05","Provisions (Resale)","130114476","08/04/16","Culture Arts & Heritage","Art Gallery Tea Room","R4102"
"Wolverhampton City Council","http://opendatacommunities.org/id/metropolitan-district-council/wolverhampton","Arthur Brett (Catering) Limited","ID843857","139.40","Provisions (Resale)","130114610","08/04/16","Culture Arts & Heritage","Bantock - Tea Rooms","R4102"
"Wolverhampton City Council","http://opendatacommunities.org/id/metropolitan-district-council/wolverhampton","Arthur Brett (Catering) Limited","ID848777","71.15","Provisions (Resale)","130117490","29/04/16","Culture Arts & Heritage","Bantock - Tea Rooms","R4102"
"Wolverhampton City Council","http://opendatacommunities.org/id/metropolitan-district-council/wolverhampton","Arthur Brett (Catering) Limited","ID828725","5,276.68","Provisions (Resale)","130118305","29/04/16","Culture Arts & Heritage","Art Gallery Tea Room","R4102"
"Wolverhampton City Council","http://opendatacommunities.org/id/metropolitan-district-council/wolverhampton","Arthur Brett (Catering) Limited","ID828725","-5,276.68","Provisions (Resale)","130118305","29/04/16","Culture Arts & Heritage","Art Gallery Tea Room","R4102"
"Wolverhampton City Council","http://opendatacommunities.org/id/metropolitan-district-council/wolverhampton","Arthur Brett (Catering) Limited","ID828725","120.03","Provisions (Resale)","130118305","29/04/16","Culture Arts & Heritage","Art Gallery Tea Room","R4102"
"Wolverhampton City Council","http://opendatacommunities.org/id/metropolitan-district-council/wolverhampton","Arthur M Griffiths & Son Limited","IN17044","13,061.23","Construction and Conversion","130113678","15/04/16","","Community Hubs","C1100"
"Wolverhampton City Council","http://opendatacommunities.org/id/metropolitan-district-council/wolverhampton","Arthur M Griffiths & Son Limited","IN 17071","138,260.63","Construction and Conversion","130116733","15/04/16","","Primary Expansion Programme","C1100"
"Wolverhampton City Council","http://opendatacommunities.org/id/metropolitan-district-council/wolverhampton","Arthur M Griffiths & Son Limited","IN17060","-326.53","Construction and Conversion","130116203","15/04/16","","Community Hubs","C1100"
"Wolverhampton City Council","http://opendatacommunities.org/id/metropolitan-district-council/wolverhampton","Arthur M Griffiths & Son Limited","INI7074","265,239.12","Construction and Conversion","130118039","27/04/16","","Primary Expansion Programme","C1100"
"Wolverhampton City Council","http://opendatacommunities.org/id/metropolitan-district-council/wolverhampton","Ashdown Supplies","13713","333.60","Materials","130113574","01/04/16","Bereavement Services","Cemeteries","R4007"
"Wolverhampton City Council","http://opendatacommunities.org/id/metropolitan-district-council/wolverhampton","Ashton Engineering Co. Limited","4129","184.00","Equipment - R & M","190219440","01/04/16","Fleet Services","Fleet Management","R4003"
"Wolverhampton City Council","http://opendatacommunities.org/id/metropolitan-district-council/wolverhampton","Ashton Engineering Co. Limited","4137","295.00","Equipment - R & M","190219441","01/04/16","Fleet Services","Fleet Management","R4003"
"Wolverhampton City Council","http://opendatacommunities.org/id/metropolitan-district-council/wolverhampton","Askews & Holts Library Services Limited","4981408","48.72","Books","130115158","15/04/16","Library Services","Global Budgets","R4309"
"Wolverhampton City Council","http://opendatacommunities.org/id/metropolitan-district-council/wolverhampton","Askews & Holts Library Services Limited","4987337","9.87","Books","130116108","29/04/16","Library Services","Global Budgets","R4309"
"Wolverhampton City Council","http://opendatacommunities.org/id/metropolitan-district-council/wolverhampton","Askews & Holts Library Services Limited","4987338","24.71","Books","130116109","29/04/16","Library Services","Global Budgets","R4309"
"Wolverhampton City Council","http://opendatacommunities.org/id/metropolitan-district-council/wolverhampton","Askews & Holts Library Services Limited","4986467","92.54","Books","130116107","29/04/16","Library Services","Global Budgets","R4309"
"Wolverhampton City Council","http://opendatacommunities.org/id/metropolitan-district-council/wolverhampton","Askews & Holts Library Services Limited","4976513","290.59","Books","130113140","13/04/16","Library Services","Global Budgets","R4309"
"Wolverhampton City Council","http://opendatacommunities.org/id/metropolitan-district-council/wolverhampton","Askews & Holts Library Services Limited","4976512","267.36","Books","130113139","13/04/16","Library Services","Global Budgets","R4309"
"Wolverhampton City Council","http://opendatacommunities.org/id/metropolitan-district-council/wolverhampton","Askews & Holts Library Services Limited","4979859","7.63","Books","130113142","13/04/16","Library Services","Global Budgets","R4309"
"Wolverhampton City Council","http://opendatacommunities.org/id/metropolitan-district-council/wolverhampton","Askews & Holts Library Services Limited","4976511","10.78","Books","130113138","13/04/16","Library Services","Global Budgets","R4309"
"Wolverhampton City Council","http://opendatacommunities.org/id/metropolitan-district-council/wolverhampton","Askews & Holts Library Services Limited","4971989","43.08","Books","130112406","08/04/16","Library Services","Global Budgets","R4309"
"Wolverhampton City Council","http://opendatacommunities.org/id/metropolitan-district-council/wolverhampton","Aspiring Futures Cic","04-27","4,487.00","Grant Payments","190226775","29/04/16","Housing Revenue Account","Single non statutory homelessness","R4700"
"Wolverhampton City Council","http://opendatacommunities.org/id/metropolitan-district-council/wolverhampton","Assn Of Electoral Administrators","18405","2,849.06","Agency Staff","130111821","06/04/16","Corporate Administration","Electoral Registration","R1100"
"Wolverhampton City Council","http://opendatacommunities.org/id/metropolitan-district-council/wolverhampton","Assn Of Electoral Administrators","18405","-2,849.06","Agency Staff","130111821","06/04/16","Corporate Administration","Electoral Registration","R1100"
"Wolverhampton City Council","http://opendatacommunities.org/id/metropolitan-district-council/wolverhampton","Assn Of Electoral Administrators","18405","2,645.06","Agency Staff","130111821","06/04/16","Corporate Administration","Electoral Registration","R1100"
"Wolverhampton City Council","http://opendatacommunities.org/id/metropolitan-district-council/wolverhampton","Assn Of Electoral Administrators","18405","204.00","Agency Staff","130111821","06/04/16","Corporate Administration","Electoral Registration","R1100"
"Wolverhampton City Council","http://opendatacommunities.org/id/metropolitan-district-council/wolverhampton","Assn Of Electoral Administrators","18782","3,318.72","Agency Staff","130112309","13/04/16","Corporate Administration","Electoral Registration","R1100"
"Wolverhampton City Council","http://opendatacommunities.org/id/metropolitan-district-council/wolverhampton","Assn Of Electoral Administrators","18782","-3,318.72","Agency Staff","130112309","13/04/16","Corporate Administration","Electoral Registration","R1100"
"Wolverhampton City Council","http://opendatacommunities.org/id/metropolitan-district-council/wolverhampton","Assn Of Electoral Administrators","18782","2,961.72","Agency Staff","130112309","13/04/16","Corporate Administration","Electoral Registration","R1100"
"Wolverhampton City Council","http://opendatacommunities.org/id/metropolitan-district-council/wolverhampton","Assn Of Electoral Administrators","18782","357.00","Agency Staff","130112309","13/04/16","Corporate Administration","Electoral Registration","R1100"
"Wolverhampton City Council","http://opendatacommunities.org/id/metropolitan-district-council/wolverhampton","Assoc Directors Adult Soc Serv-Adass","346","1,350.00","Conference Expenses","130115570","27/04/16","Transformation","Workforce Development","R4611"
"Wolverhampton City Council","http://opendatacommunities.org/id/metropolitan-district-council/wolverhampton","Associated  Radio Taxi�s","8755","1,287.12","Client Transport","130116333","13/04/16","School Planning & Resources","Special - Transport","R3042"
"Wolverhampton City Council","http://opendatacommunities.org/id/metropolitan-district-council/wolverhampton","Associated  Radio Taxi�s","8360","760.00","Client Transport","130112466","06/04/16","School Planning & Resources","Secondary- Transport","R3042"
"Wolverhampton City Council","http://opendatacommunities.org/id/metropolitan-district-council/wolverhampton","Associated  Radio Taxi�s","8756","688.75","Client Transport","130116334","20/04/16","School Planning & Resources","Special - Transport","R3042"
"Wolverhampton City Council","http://opendatacommunities.org/id/metropolitan-district-council/wolverhampton","Associated  Radio Taxi�s","8756","-688.75","Client Transport","130116334","20/04/16","School Planning & Resources","Special - Transport","R3042"
"Wolverhampton City Council","http://opendatacommunities.org/id/metropolitan-district-council/wolverhampton","Associated  Radio Taxi�s","8756","688.75","Client Transport","130116334","20/04/16","School Planning & Resources","Special - Transport","R3042"
"Wolverhampton City Council","http://opendatacommunities.org/id/metropolitan-district-council/wolverhampton","Associated  Radio Taxi�s","8750","939.42","Client Transport","130116505","20/04/16","School Planning & Resources","Secondary- Transport","R3042"
"Wolverhampton City Council","http://opendatacommunities.org/id/metropolitan-district-council/wolverhampton","Associated  Radio Taxi�s","8750","-939.42","Client Transport","130116505","20/04/16","School Planning & Resources","Secondary- Transport","R3042"
"Wolverhampton City Council","http://opendatacommunities.org/id/metropolitan-district-council/wolverhampton","Associated  Radio Taxi�s","8750","939.42","Client Transport","130116505","20/04/16","School Planning & Resources","Secondary- Transport","R3042"
"Wolverhampton City Council","http://opendatacommunities.org/id/metropolitan-district-council/wolverhampton","Associated  Radio Taxi�s","02026","426.70","Client Transport","130116244","20/04/16","Children in Need & Child Protection","Valley Park - CIN  Social Work Unit - S17","R3042"
"Wolverhampton City Council","http://opendatacommunities.org/id/metropolitan-district-council/wolverhampton","Associated  Radio Taxi�s","02026","-426.70","Client Transport","130116244","20/04/16","Children in Need & Child Protection","Valley Park - CIN  Social Work Unit - S17","R3042"
"Wolverhampton City Council","http://opendatacommunities.org/id/metropolitan-district-council/wolverhampton","Associated  Radio Taxi�s","02026","426.70","Client Transport","130116244","20/04/16","Children in Need & Child Protection","Valley Park - CIN  Social Work Unit - S17","R3042"
"Wolverhampton City Council","http://opendatacommunities.org/id/metropolitan-district-council/wolverhampton","Associated  Radio Taxi�s","8752","977.79","Client Transport","130116331","20/04/16","School Planning & Resources","Primary - Transport","R3042"
"Wolverhampton City Council","http://opendatacommunities.org/id/metropolitan-district-council/wolverhampton","Associated  Radio Taxi�s","8752","-977.79","Client Transport","130116331","20/04/16","School Planning & Resources","Primary - Transport","R3042"
"Wolverhampton City Council","http://opendatacommunities.org/id/metropolitan-district-council/wolverhampton","Associated  Radio Taxi�s","8752","977.79","Client Transport","130116331","20/04/16","School Planning & Resources","Primary - Transport","R3042"
"Wolverhampton City Council","http://opendatacommunities.org/id/metropolitan-district-council/wolverhampton","Associated  Radio Taxi�s","8761","219.60","Client Transport","130116339","20/04/16","School Planning & Resources","Special - Transport","R3042"
"Wolverhampton City Council","http://opendatacommunities.org/id/metropolitan-district-council/wolverhampton","Associated  Radio Taxi�s","02032","54.60","Client Transport","130116407","15/04/16","Children With Disabilities","Childrens with Disabilities Team","R3042"
"Wolverhampton City Council","http://opendatacommunities.org/id/metropolitan-district-council/wolverhampton","Associated  Radio Taxi�s","8754","-965.16","Client Transport","130116506","15/04/16","School Planning & Resources","Primary - Transport","R3042"
"Wolverhampton City Council","http://opendatacommunities.org/id/metropolitan-district-council/wolverhampton","Associated  Radio Taxi�s","8754","965.16","Client Transport","130116506","15/04/16","School Planning & Resources","Primary - Transport","R3042"
"Wolverhampton City Council","http://opendatacommunities.org/id/metropolitan-district-council/wolverhampton","Associated  Radio Taxi�s","8757","1,193.04","Client Transport","130116335","15/04/16","School Planning & Resources","Primary - Transport","R3042"
"Wolverhampton City Council","http://opendatacommunities.org/id/metropolitan-district-council/wolverhampton","Associated  Radio Taxi�s","8757","-1,193.04","Client Transport","130116335","15/04/16","School Planning & Resources","Primary - Transport","R3042"
"Wolverhampton City Council","http://opendatacommunities.org/id/metropolitan-district-council/wolverhampton","Associated  Radio Taxi�s","8757","1,193.04","Client Transport","130116335","15/04/16","School Planning & Resources","Primary - Transport","R3042"
"Wolverhampton City Council","http://opendatacommunities.org/id/metropolitan-district-council/wolverhampton","Associated  Radio Taxi�s","8356","1,040.64","Client Transport","130112462","22/04/16","School Planning & Resources","Secondary- Transport","R3042"
"Wolverhampton City Council","http://opendatacommunities.org/id/metropolitan-district-council/wolverhampton","Associated  Radio Taxi�s","8356","-1,040.64","Client Transport","130112462","22/04/16","School Planning & Resources","Secondary- Transport","R3042"
"Wolverhampton City Council","http://opendatacommunities.org/id/metropolitan-district-council/wolverhampton","Associated  Radio Taxi�s","8356","1,040.64","Client Transport","130112462","22/04/16","School Planning & Resources","Secondary- Transport","R3042"
"Wolverhampton City Council","http://opendatacommunities.org/id/metropolitan-district-council/wolverhampton","Associated  Radio Taxi�s","8760","660.80","Client Transport","130116338","13/04/16","School Planning & Resources","Special - Transport","R3042"
"Wolverhampton City Council","http://opendatacommunities.org/id/metropolitan-district-council/wolverhampton","Associated  Radio Taxi�s","8758","994.68","Client Transport","130116336","13/04/16","School Planning & Resources","Secondary- Transport","R3042"
"Wolverhampton City Council","http://opendatacommunities.org/id/metropolitan-district-council/wolverhampton","Associated  Radio Taxi�s","8751","994.68","Client Transport","130116330","15/04/16","Schools","Pupil Referral Units ISB","R3042"
"Wolverhampton City Council","http://opendatacommunities.org/id/metropolitan-district-council/wolverhampton","Associated  Radio Taxi�s","8751","-994.68","Client Transport","130116330","15/04/16","Schools","Pupil Referral Units ISB","R3042"
"Wolverhampton City Council","http://opendatacommunities.org/id/metropolitan-district-council/wolverhampton","Associated  Radio Taxi�s","8751","994.68","Client Transport","130116330","15/04/16","Schools","Pupil Referral Units ISB","R3042"
"Wolverhampton City Council","http://opendatacommunities.org/id/metropolitan-district-council/wolverhampton","Associated  Radio Taxi�s","8754","965.16","Client Transport","130116506","15/04/16","School Planning & Resources","Primary - Transport","R3042"
"Wolverhampton City Council","http://opendatacommunities.org/id/metropolitan-district-council/wolverhampton","Associated  Radio Taxi�s","02028","23.90","Client Transport","130116245","27/04/16","Learning Disability Provider","Ernest Bold Court","R3042"
"Wolverhampton City Council","http://opendatacommunities.org/id/metropolitan-district-council/wolverhampton","Associated  Radio Taxi�s","02028","-23.90","Client Transport","130116245","27/04/16","Learning Disability Provider","Ernest Bold Court","R3042"
"Wolverhampton City Council","http://opendatacommunities.org/id/metropolitan-district-council/wolverhampton","Associated  Radio Taxi�s","02028","23.90","Client Transport","130116245","27/04/16","Learning Disability Provider","Ernest Bold Court","R3042"
"Wolverhampton City Council","http://opendatacommunities.org/id/metropolitan-district-council/wolverhampton","Vanquish Integrated People Solutions","127562","53.60","Computing - Consumables","130115523","13/04/16","Fleet Services","Passenger Transport - General","R4532"
"Wolverhampton City Council","http://opendatacommunities.org/id/metropolitan-district-council/wolverhampton","Vanquish Integrated People Solutions","40983","311.85","Equipment - R & M","130115577","13/04/16","Fleet Services","Passenger Transport - General","R4003"
"Wolverhampton City Council","http://opendatacommunities.org/id/metropolitan-district-council/wolverhampton","Pelican Rouge Coffee Solutions Limited","160000531","712.30","Provisions (Resale)","130116045","29/04/16","Catering","Civic Centre Catering","R4102"
"Wolverhampton City Council","http://opendatacommunities.org/id/metropolitan-district-council/wolverhampton","Pelican Rouge Coffee Solutions Limited","160000531","-712.30","Provisions (Resale)","130116045","29/04/16","Catering","Civic Centre Catering","R4102"
"Wolverhampton City Council","http://opendatacommunities.org/id/metropolitan-district-council/wolverhampton","Pelican Rouge Coffee Solutions Limited","160000531","712.30","Provisions (Resale)","130116045","29/04/16","Catering","Civic Centre Catering","R4102"
"Wolverhampton City Council","http://opendatacommunities.org/id/metropolitan-district-council/wolverhampton","Pelican Rouge Coffee Solutions Limited","150156910","624.79","Provisions (Resale)","130113737","01/04/16","Catering","Civic Centre Catering","R4102"
"Wolverhampton City Council","http://opendatacommunities.org/id/metropolitan-district-council/wolverhampton","Pelican Rouge Coffee Solutions Limited","150156910","-624.79","Provisions (Resale)","130113737","01/04/16","Catering","Civic Centre Catering","R4102"
"Wolverhampton City Council","http://opendatacommunities.org/id/metropolitan-district-council/wolverhampton","Pelican Rouge Coffee Solutions Limited","150156910","624.79","Provisions (Resale)","130113737","01/04/16","Catering","Civic Centre Catering","R4102"
"Wolverhampton City Council","http://opendatacommunities.org/id/metropolitan-district-council/wolverhampton","Pelican Rouge Coffee Solutions Limited","150153354","50.01","Catering","130113736","08/04/16","Democracy","Members Expenses","R4100"
"Wolverhampton City Council","http://opendatacommunities.org/id/metropolitan-district-council/wolverhampton","Pelican Rouge Coffee Solutions Limited","150183997","50.01","Equipment - Hire","130117436","27/04/16","Democracy","Members Expenses","R4001"
"Wolverhampton City Council","http://opendatacommunities.org/id/metropolitan-district-council/wolverhampton","Axiom Building Solutions","02238","400.00","R&M - Departmental planned (external)","130115724","27/04/16","Engineering & Civic Centre","Civic Centre","R2001"
"Wolverhampton City Council","http://opendatacommunities.org/id/metropolitan-district-council/wolverhampton","Axiom Building Solutions","02240","1,650.00","R&M - Departmental planned (external)","130114759","27/04/16","Engineering & Civic Centre","Statutory Services (10RM)","R2001"
"Wolverhampton City Council","http://opendatacommunities.org/id/metropolitan-district-council/wolverhampton","Badenoch & Clark Recruit. Specialist","4777065","1,350.00","Agency Staff","130114555","01/04/16","Transformation","Corporate Programmes","R1100"
"Wolverhampton City Council","http://opendatacommunities.org/id/metropolitan-district-council/wolverhampton","Badenoch & Clark Recruit. Specialist","4777068","3,000.00","Agency Staff","130114558","01/04/16","ICTS","Digital Transformation Programme","R1100"
"Wolverhampton City Council","http://opendatacommunities.org/id/metropolitan-district-council/wolverhampton","Badenoch & Clark Recruit. Specialist","4777066","2,625.00","Agency Staff","130114556","01/04/16","Transformation","Corporate Programmes","R1100"
"Wolverhampton City Council","http://opendatacommunities.org/id/metropolitan-district-council/wolverhampton","Badenoch & Clark Recruit. Specialist","4772510","2,750.00","Agency Staff","130112141","01/04/16","Service Director Disability & Mental Health","Service Director Disability & Mental Health","R1100"
"Wolverhampton City Council","http://opendatacommunities.org/id/metropolitan-district-council/wolverhampton","Badenoch & Clark Recruit. Specialist","2131764","-3,575.00","Agency Staff","130113587","01/04/16","City Development","City Development  - Core Team","R1100"
"Wolverhampton City Council","http://opendatacommunities.org/id/metropolitan-district-council/wolverhampton","Badenoch & Clark Recruit. Specialist","4759856","3,015.00","Agency Staff","130106558","01/04/16","Strategic Financial Services","Corporate Procurement Unit","R1100"
"Wolverhampton City Council","http://opendatacommunities.org/id/metropolitan-district-council/wolverhampton","Badenoch & Clark Recruit. Specialist","4761230","1,640.00","Agency Staff","130108083","01/04/16","Strategic Financial Services","Corporate Procurement Unit","R1100"
"Wolverhampton City Council","http://opendatacommunities.org/id/metropolitan-district-council/wolverhampton","Badenoch & Clark Recruit. Specialist","4774855","1,350.00","Agency Staff","130113641","01/04/16","Transformation","Corporate Programmes","R1100"
"Wolverhampton City Council","http://opendatacommunities.org/id/metropolitan-district-council/wolverhampton","Badenoch & Clark Recruit. Specialist","4774856","2,625.00","Agency Staff","130113642","01/04/16","Transformation","Corporate Programmes","R1100"
"Wolverhampton City Council","http://opendatacommunities.org/id/metropolitan-district-council/wolverhampton","Badenoch & Clark Recruit. Specialist","4774858","3,000.00","Agency Staff","130113644","01/04/16","ICTS","Digital Transformation Programme","R1100"
"Wolverhampton City Council","http://opendatacommunities.org/id/metropolitan-district-council/wolverhampton","Badenoch & Clark Recruit. Specialist","4774853","2,058.80","Agency Staff","130113639","01/04/16","Strategic Financial Services","Strategic Financial Services","R1100"
"Wolverhampton City Council","http://opendatacommunities.org/id/metropolitan-district-council/wolverhampton","Badenoch & Clark Recruit. Specialist","4774849","1,381.91","Agency Staff","130113635","01/04/16","Strategic Financial Services","Strategic Financial Services","R1100"
"Wolverhampton City Council","http://opendatacommunities.org/id/metropolitan-district-council/wolverhampton","Badenoch & Clark Recruit. Specialist","4774857","3,529.40","Agency Staff","130113643","01/04/16","Service Director City Environment","Service Director City Environment","R1100"
"Wolverhampton City Council","http://opendatacommunities.org/id/metropolitan-district-council/wolverhampton","Badenoch & Clark Recruit. Specialist","4774852","3,529.40","Agency Staff","130113638","01/04/16","Service Director City Environment","Service Director City Environment","R1100"
"Wolverhampton City Council","http://opendatacommunities.org/id/metropolitan-district-council/wolverhampton","Badenoch & Clark Recruit. Specialist","4774850","3,529.40","Agency Staff","130113636","01/04/16","Service Director City Environment","Service Director City Environment","R1100"
"Wolverhampton City Council","http://opendatacommunities.org/id/metropolitan-district-council/wolverhampton","Badenoch & Clark Recruit. Specialist","4772503","2,700.00","Agency Staff","130112134","01/04/16","Service Director Older People","Service Director Older People","R1100"
"Wolverhampton City Council","http://opendatacommunities.org/id/metropolitan-district-council/wolverhampton","Badenoch & Clark Recruit. Specialist","2130363","-820.00","Agency Staff","130114366","01/04/16","Strategic Financial Services","Corporate Procurement Unit","R1100"
"Wolverhampton City Council","http://opendatacommunities.org/id/metropolitan-district-council/wolverhampton","Badenoch & Clark Recruit. Specialist","2131644","-3,015.00","Agency Staff","130114367","01/04/16","Strategic Financial Services","Corporate Procurement Unit","R1100"
"Wolverhampton City Council","http://opendatacommunities.org/id/metropolitan-district-council/wolverhampton","Badenoch & Clark Recruit. Specialist","4785261","2,058.80","Agency Staff","130117661","29/04/16","Strategic Financial Services","Strategic Financial Services","R1100"
"Wolverhampton City Council","http://opendatacommunities.org/id/metropolitan-district-council/wolverhampton","Badenoch & Clark Recruit. Specialist","4785265","2,050.00","Agency Staff","130117665","29/04/16","Strategic Financial Services","Corporate Procurement Unit","R1100"
"Wolverhampton City Council","http://opendatacommunities.org/id/metropolitan-district-council/wolverhampton","Badenoch & Clark Recruit. Specialist","4782349","820.00","Agency Staff","130116674","20/04/16","Strategic Financial Services","Corporate Procurement Unit","R1100"
"Wolverhampton City Council","http://opendatacommunities.org/id/metropolitan-district-council/wolverhampton","Badenoch & Clark Recruit. Specialist","4782350","2,823.52","Agency Staff","130116675","20/04/16","Service Director City Environment","Service Director City Environment","R1100"
"Wolverhampton City Council","http://opendatacommunities.org/id/metropolitan-district-council/wolverhampton","Badenoch & Clark Recruit. Specialist","4744300","3,529.40","Agency Staff","130111590","20/04/16","Service Director City Environment","Service Director City Environment","R1100"
"Wolverhampton City Council","http://opendatacommunities.org/id/metropolitan-district-council/wolverhampton","Badenoch & Clark Recruit. Specialist","4774854","2,700.00","Agency Staff","130113640","20/04/16","Service Director Older People","Service Director Older People","R1100"
"Wolverhampton City Council","http://opendatacommunities.org/id/metropolitan-district-council/wolverhampton","Badenoch & Clark Recruit. Specialist","4782345","1,350.00","Agency Staff","130116670","20/04/16","Service Director Older People","Service Director Older People","R1100"
"Wolverhampton City Council","http://opendatacommunities.org/id/metropolitan-district-council/wolverhampton","Badenoch & Clark Recruit. Specialist","4771494","2,412.00","Agency Staff","130112130","20/04/16","Strategic Financial Services","Corporate Procurement Unit","R1100"
"Wolverhampton City Council","http://opendatacommunities.org/id/metropolitan-district-council/wolverhampton","Badenoch & Clark Recruit. Specialist","4774851","2,713.50","Agency Staff","130113637","20/04/16","Strategic Financial Services","Corporate Procurement Unit","R1100"
"Wolverhampton City Council","http://opendatacommunities.org/id/metropolitan-district-council/wolverhampton","Badenoch & Clark Recruit. Specialist","4774859","1,206.00","Agency Staff","130113645","20/04/16","Strategic Financial Services","Corporate Procurement Unit","R1100"
"Wolverhampton City Council","http://opendatacommunities.org/id/metropolitan-district-council/wolverhampton","Badenoch & Clark Recruit. Specialist","4782344","1,647.04","Agency Staff","130116669","20/04/16","Strategic Financial Services","Strategic Financial Services","R1100"
"Wolverhampton City Council","http://opendatacommunities.org/id/metropolitan-district-council/wolverhampton","Badenoch & Clark Recruit. Specialist","4772501","2,750.00","Agency Staff","130112132","20/04/16","Service Director Disability & Mental Health","Service Director Disability & Mental Health","R1100"
"Wolverhampton City Council","http://opendatacommunities.org/id/metropolitan-district-council/wolverhampton","Badenoch & Clark Recruit. Specialist","4774860","2,750.00","Agency Staff","130113646","20/04/16","Service Director Disability & Mental Health","Service Director Disability & Mental Health","R1100"
"Wolverhampton City Council","http://opendatacommunities.org/id/metropolitan-district-council/wolverhampton","Badenoch & Clark Recruit. Specialist","4782343","719.04","Agency Staff","130116668","20/04/16","Strategic Financial Services","Strategic Financial Services","R1100"
"Wolverhampton City Council","http://opendatacommunities.org/id/metropolitan-district-council/wolverhampton","Badenoch & Clark Recruit. Specialist","4782346","11,797.50","Agency Staff","130116671","20/04/16","City Development","City Development  - Core Team","R1100"
"Wolverhampton City Council","http://opendatacommunities.org/id/metropolitan-district-council/wolverhampton","Badenoch & Clark Recruit. Specialist","4782351","2,400.00","Agency Staff","130116676","15/04/16","ICTS","Digital Transformation Programme","R1100"
"Wolverhampton City Council","http://opendatacommunities.org/id/metropolitan-district-council/wolverhampton","Badenoch & Clark Recruit. Specialist","4782348","2,100.00","Agency Staff","130116673","15/04/16","Transformation","Corporate Programmes","R1100"
"Wolverhampton City Council","http://opendatacommunities.org/id/metropolitan-district-council/wolverhampton","Badenoch & Clark Recruit. Specialist","4782347","1,080.00","Agency Staff","130116672","15/04/16","Transformation","Corporate Programmes","R1100"
"Wolverhampton City Council","http://opendatacommunities.org/id/metropolitan-district-council/wolverhampton","Badenoch & Clark Recruit. Specialist","4785264","2,625.00","Agency Staff","130117664","27/04/16","Transformation","Corporate Programmes","R1100"
"Wolverhampton City Council","http://opendatacommunities.org/id/metropolitan-district-council/wolverhampton","Badenoch & Clark Recruit. Specialist","4785263","1,350.00","Agency Staff","130117663","27/04/16","Transformation","Corporate Programmes","R1100"
"Wolverhampton City Council","http://opendatacommunities.org/id/metropolitan-district-council/wolverhampton","Badenoch & Clark Recruit. Specialist","4785266","3,000.00","Agency Staff","130117666","27/04/16","ICTS","Digital Transformation Programme","R1100"
"Wolverhampton City Council","http://opendatacommunities.org/id/metropolitan-district-council/wolverhampton","Bagri News (High Street News)","WENEWS022","81.19","Books","130112564","13/04/16","Library Services","Wednesfield Library","R4309"
"Wolverhampton City Council","http://opendatacommunities.org/id/metropolitan-district-council/wolverhampton","Bagri News (High Street News)","WANEWS023","71.30","Books","130118271","29/04/16","Library Services","Wednesfield Library","R4309"
"Wolverhampton City Council","http://opendatacommunities.org/id/metropolitan-district-council/wolverhampton","Bains Supersave Limited","APNEWS024","38.35","Books","130115401","08/04/16","Library Services","Ashmore Park Library","R4309"
"Wolverhampton City Council","http://opendatacommunities.org/id/metropolitan-district-council/wolverhampton","Bakare Beds Limited","43873","8,779.00","Equipment - Purchase","130113407","01/04/16","Independent Living Service","Independent Living Service","R4000"
"Wolverhampton City Council","http://opendatacommunities.org/id/metropolitan-district-council/wolverhampton","Baker Hall Limited","15051","700.00","Services - Consultants","130112677","06/04/16","Planning","Building Consultancy","R4404"
"Wolverhampton City Council","http://opendatacommunities.org/id/metropolitan-district-council/wolverhampton","Baker Hall Limited","WV/03/16","1,277.50","Services - Consultants","130115983","27/04/16","Planning","Building Consultancy","R4404"
"Wolverhampton City Council","http://opendatacommunities.org/id/metropolitan-district-council/wolverhampton","Barnardos Childrens Charity","146510142","3,582.00","TPP - Payments to voluntary groups","130115525","13/04/16","Looked After Children","Adoption and Residence Team & Allowances","R5200"
"Wolverhampton City Council","http://opendatacommunities.org/id/metropolitan-district-council/wolverhampton","Base 25","2651","12,000.00","TPP - Social Care Support Services","130114659","22/04/16","Safeguarding","Head of Service Quality and Safeguarding","R5501"
"Wolverhampton City Council","http://opendatacommunities.org/id/metropolitan-district-council/wolverhampton","Base 25","2625","12,000.00","TPP - Social Care Support Services","130114152","22/04/16","Safeguarding","Head of Service Quality and Safeguarding","R5501"
"Wolverhampton City Council","http://opendatacommunities.org/id/metropolitan-district-council/wolverhampton","Base 25","2647","15,059.00","TPP - Public Health Contracts","130114658","22/04/16","Contracts","Public Mental Health","R5060"
"Wolverhampton City Council","http://opendatacommunities.org/id/metropolitan-district-council/wolverhampton","Base 25","2647","-15,059.00","TPP - Public Health Contracts","130114658","22/04/16","Contracts","Public Mental Health","R5060"
"Wolverhampton City Council","http://opendatacommunities.org/id/metropolitan-district-council/wolverhampton","Base 25","2647","15,059.00","TPP - Public Health Contracts","130114658","22/04/16","Contracts","Public Mental Health","R5060"
"Wolverhampton City Council","http://opendatacommunities.org/id/metropolitan-district-council/wolverhampton","Base 25","2592","360.00","Training Expenses","130116978","22/04/16","Childrens Centres & Early Years","Children�s Village Children Centre","R1650"
"Wolverhampton City Council","http://opendatacommunities.org/id/metropolitan-district-council/wolverhampton","Bbp.Security Services & Training Limited","037TM300316","5,250.38","Services - Security","130114304","06/04/16","Regulatory Services","Licensing - H.Carriage/Pr.Hire Vehicles","R4405"
"Wolverhampton City Council","http://opendatacommunities.org/id/metropolitan-district-council/wolverhampton","Bbp.Security Services & Training Limited","030WCC300316","1,080.00","Services - Security","130114303","06/04/16","Older People Provider Services","Woden Resource Centre","R4405"
"Wolverhampton City Council","http://opendatacommunities.org/id/metropolitan-district-council/wolverhampton","Bbp.Security Services & Training Limited","604SAT220316","800.00","Services - Security","130113430","01/04/16","Engineering & Civic Centre","Management of Vacant Properties","R4405"
"Wolverhampton City Council","http://opendatacommunities.org/id/metropolitan-district-council/wolverhampton","Bbp.Security Services & Training Limited","605SAT220316","90.00","Services - Security","130113431","01/04/16","Engineering & Civic Centre","Management of Vacant Properties","R4405"
"Wolverhampton City Council","http://opendatacommunities.org/id/metropolitan-district-council/wolverhampton","BCC Mac T/A Ss Mary & John Catholic","SEN Mainstream Top Ups Spring 2015-16 SS MAR","3,650.00","Grant Payments","190220226","06/04/16","Schools","High Needs Top Up -Mainstream Schools/Academies","R4700"
"Wolverhampton City Council","http://opendatacommunities.org/id/metropolitan-district-council/wolverhampton","BCC Mac T/A St Michaels Catholic","Spring Term 2016 EY Double Funding ST MICH","604.80","Grant Payments","190225846","27/04/16","Schools","Academy Early years","R4700"
"Wolverhampton City Council","http://opendatacommunities.org/id/metropolitan-district-council/wolverhampton","BCC Mac T/A St Michaels Catholic","SEN Mainstream Top Ups Spring 2015-16 ST  MICH","4,013.09","Grant Payments","190220217","06/04/16","Schools","High Needs Top Up -Mainstream Schools/Academies","R4700"
"Wolverhampton City Council","http://opendatacommunities.org/id/metropolitan-district-council/wolverhampton","BCC Mac T/A St Michaels Catholic","EY Summer 2016 Interim STMICH","13,494.00","Grant Payments","190222781","15/04/16","Schools","Academy Early years","R4700"
"Wolverhampton City Council","http://opendatacommunities.org/id/metropolitan-district-council/wolverhampton","BCC Mac T/A St Teresa�S Catholic","SEN Mainstream Top Ups Spring 2015-16 ST TR","1,031.94","Grant Payments","190220218","06/04/16","Schools","High Needs Top Up -Mainstream Schools/Academies","R4700"
"Wolverhampton City Council","http://opendatacommunities.org/id/metropolitan-district-council/wolverhampton","BCC Mac T/A The Giffard Catholic","EY Summer 2016 Interim TG","15,084.00","Grant Payments","190222782","15/04/16","Schools","Academy Early years","R4700"
"Wolverhampton City Council","http://opendatacommunities.org/id/metropolitan-district-council/wolverhampton","BCC Mac T/A The Giffard Catholic","SEN Mainstream Top Ups Spring 2015-16 T GIFF","2,063.87","Grant Payments","190220219","06/04/16","Schools","High Needs Top Up -Mainstream Schools/Academies","R4700"
"Wolverhampton City Council","http://opendatacommunities.org/id/metropolitan-district-council/wolverhampton","Beacon Centre For The Blind","BCI23409","583.33","Room Hire","130115654","15/04/16","Adult Education","Work Related Studies","R2201"
"Wolverhampton City Council","http://opendatacommunities.org/id/metropolitan-district-council/wolverhampton","Beacon Centre For The Blind","BCI23408","500.00","Room Hire","130115653","15/04/16","Adult Education","Work Related Studies","R2201"
"Wolverhampton City Council","http://opendatacommunities.org/id/metropolitan-district-council/wolverhampton","Beacon Centre For The Blind","BCI23408","-500.00","Room Hire","130115653","15/04/16","Adult Education","Work Related Studies","R2201"
"Wolverhampton City Council","http://opendatacommunities.org/id/metropolitan-district-council/wolverhampton","Beacon Centre For The Blind","BCI23408","500.00","Room Hire","130115653","15/04/16","Adult Education","Work Related Studies","R2201"
"Wolverhampton City Council","http://opendatacommunities.org/id/metropolitan-district-council/wolverhampton","Beacon Centre For The Blind","BCI23407","416.67","Room Hire","130115652","15/04/16","Adult Education","Work Related Studies","R2201"
"Wolverhampton City Council","http://opendatacommunities.org/id/metropolitan-district-council/wolverhampton","Beacon Centre For The Blind","BCI23407","-416.67","Room Hire","130115652","15/04/16","Adult Education","Work Related Studies","R2201"
"Wolverhampton City Council","http://opendatacommunities.org/id/metropolitan-district-council/wolverhampton","Beacon Centre For The Blind","BCI23407","416.67","Room Hire","130115652","15/04/16","Adult Education","Work Related Studies","R2201"
"Wolverhampton City Council","http://opendatacommunities.org/id/metropolitan-district-council/wolverhampton","Believe To Achieve Limited","12898","54.00","Services - Professional Fees","130118277","29/04/16","Schools","Christ Church (Church of England) Junior School","R4400"
"Wolverhampton City Council","http://opendatacommunities.org/id/metropolitan-district-council/wolverhampton","Believe To Achieve Limited","12892","10,000.00","Services - Professional Fees","130113358","06/04/16","Mental Health Commissioning","Head Start Wolverhampton","R4400"
"Wolverhampton City Council","http://opendatacommunities.org/id/metropolitan-district-council/wolverhampton","Berendsen UK Limited","LPI049744","40.99","Protective Clothing","190222368","13/04/16","Fleet Services","Fleet Management","R4200"
"Wolverhampton City Council","http://opendatacommunities.org/id/metropolitan-district-council/wolverhampton","Berendsen UK Limited","SN2340322","186.52","Protective Clothing","190222417","13/04/16","Fleet Services","Fleet Management","R4200"
"Wolverhampton City Council","http://opendatacommunities.org/id/metropolitan-district-council/wolverhampton","Berendsen UK Limited","SN2363485","186.52","Protective Clothing","190222418","13/04/16","Fleet Services","Fleet Management","R4200"
"Wolverhampton City Council","http://opendatacommunities.org/id/metropolitan-district-council/wolverhampton","Berrybrook Primary School Fund A/C","BB000018","4,050.00","Services - Professional Fees","130117563","27/04/16","Schools","Dunstall Hill Primary School","R4400"
"Wolverhampton City Council","http://opendatacommunities.org/id/metropolitan-district-council/wolverhampton","Berrybrook Primary School Fund A/C","EYPP Spring 2016","858.60","TPP - Private Nursery Education Funding","190219035","01/04/16","Childrens Centres & Early Years","Early Years Non Maintained Schools","R5035"
"Wolverhampton City Council","http://opendatacommunities.org/id/metropolitan-district-council/wolverhampton","Berrymans Lace Mawer","2132523","1,000.00","Insurance - General","130113759","01/04/16","Audit Services","Legal Liability","R4962"
"Wolverhampton City Council","http://opendatacommunities.org/id/metropolitan-district-council/wolverhampton","Beverages Direct Limited","680155","334.74","Provisions (Resale)","130114930","20/04/16","Catering","Education Catering - General Overheads","R4102"
"Wolverhampton City Council","http://opendatacommunities.org/id/metropolitan-district-council/wolverhampton","Beverages Direct Limited","680155","-334.74","Provisions (Resale)","130114930","20/04/16","Catering","Education Catering - General Overheads","R4102"
"Wolverhampton City Council","http://opendatacommunities.org/id/metropolitan-district-council/wolverhampton","Beverages Direct Limited","680155","72.96","Provisions (Resale)","130114930","20/04/16","Catering","Education Catering - General Overheads","R4102"
"Wolverhampton City Council","http://opendatacommunities.org/id/metropolitan-district-council/wolverhampton","Beverages Direct Limited","680155","261.78","Provisions (Resale)","130114930","20/04/16","Catering","Education Catering - General Overheads","R4102"
"Wolverhampton City Council","http://opendatacommunities.org/id/metropolitan-district-council/wolverhampton","BGL Rieber Limited","36517626","2,626.80","Equipment - Purchase","130114400","01/04/16","Catering","Education Catering - General Overheads","R4000"
"Wolverhampton City Council","http://opendatacommunities.org/id/metropolitan-district-council/wolverhampton","Birmingham Cash Registers Limited","L019920","96.00","Stationery","130113688","01/04/16","Culture Arts & Heritage","Bantock - Tea Rooms","R4308"
"Wolverhampton City Council","http://opendatacommunities.org/id/metropolitan-district-council/wolverhampton","Birmingham CC - General Fund","9600103881","390.00","External Professional Fees","130114213","13/04/16","","Structural works","C6002"
"Wolverhampton City Council","http://opendatacommunities.org/id/metropolitan-district-council/wolverhampton","Black Country Consortium Limited","1626","103,322.00","Grant Payments","130115750","13/04/16","Enterprise & Skills","Black Country Consortium","R4700"
"Wolverhampton City Council","http://opendatacommunities.org/id/metropolitan-district-council/wolverhampton","Black Country Consortium Limited","1626","7,500.00","Grant Payments","130115750","13/04/16","Enterprise & Skills","Invest Black Country","R4700"
"Wolverhampton City Council","http://opendatacommunities.org/id/metropolitan-district-council/wolverhampton","Black Country Consortium Limited","1639","28,771.20","TPP - Public Health Contracts","130118140","29/04/16","Healthier Places Service","Obesity Ring Fenced Expenditure","R5060"
"Wolverhampton City Council","http://opendatacommunities.org/id/metropolitan-district-council/wolverhampton","Black Country Consortium Limited","1625","2,000.00","TPP - Payments to Local Authorities","130115749","13/04/16","Central Corporate Budgets","Combined Authority","R5100"
"Wolverhampton City Council","http://opendatacommunities.org/id/metropolitan-district-council/wolverhampton","Black Country Partnership NHS Ft","3100000316","4,057.42","Grant Payments","130116089","13/04/16","Mental Health Commissioning","Child & Adolescent Mental Health Service","R4700"
"Wolverhampton City Council","http://opendatacommunities.org/id/metropolitan-district-council/wolverhampton","Black Country Partnership NHS Ft","3100000302","4,057.42","Grant Payments","130116088","13/04/16","Mental Health Commissioning","Child & Adolescent Mental Health Service","R4700"
"Wolverhampton City Council","http://opendatacommunities.org/id/metropolitan-district-council/wolverhampton","Blue Group Interntl Limited T/A Bluecare","HSOC5555531","1,332.00","Agency Staff","130112188","13/04/16","Children in Need & Child Protection","CIN - Warstones MAST - Area 4","R1100"
"Wolverhampton City Council","http://opendatacommunities.org/id/metropolitan-district-council/wolverhampton","Blue Group Interntl Limited T/A Bluecare","HSOC5557476","1,369.00","Agency Staff","130113480","15/04/16","Children in Need & Child Protection","CIN - Graisley MAST - Area 3","R1100"
"Wolverhampton City Council","http://opendatacommunities.org/id/metropolitan-district-council/wolverhampton","Blue Group Interntl Limited T/A Bluecare","HSOC5558724","75.60","Agency Staff","130113482","15/04/16","Children in Need & Child Protection","CIN Agency","R1100"
"Wolverhampton City Council","http://opendatacommunities.org/id/metropolitan-district-council/wolverhampton","Blue Group Interntl Limited T/A Bluecare","HSOC5558727","62.10","Agency Staff","130113485","15/04/16","Children in Need & Child Protection","CIN Agency","R1100"
"Wolverhampton City Council","http://opendatacommunities.org/id/metropolitan-district-council/wolverhampton","Blue Group Interntl Limited T/A Bluecare","HSOC5558728","1,020.00","Agency Staff","130113486","15/04/16","Children in Need & Child Protection","CIN Agency","R1100"
"Wolverhampton City Council","http://opendatacommunities.org/id/metropolitan-district-council/wolverhampton","Blue Group Interntl Limited T/A Bluecare","HSOC5558725","1,020.00","Agency Staff","130113483","15/04/16","Children in Need & Child Protection","CIN Agency","R1100"
"Wolverhampton City Council","http://opendatacommunities.org/id/metropolitan-district-council/wolverhampton","Blue Group Interntl Limited T/A Bluecare","HSOC5558726","1,020.00","Agency Staff","130113484","15/04/16","Children in Need & Child Protection","CIN Agency","R1100"
"Wolverhampton City Council","http://opendatacommunities.org/id/metropolitan-district-council/wolverhampton","Blue Group Interntl Limited T/A Bluecare","HSOC5557477","14.85","Agency Staff","130113481","15/04/16","Children in Need & Child Protection","CIN - Graisley MAST - Area 3","R1100"
"Wolverhampton City Council","http://opendatacommunities.org/id/metropolitan-district-council/wolverhampton","Blue Group Interntl Limited T/A Bluecare","HSOC5559906","6.30","Agency Staff","130114223","27/04/16","Children in Need & Child Protection","CIN - Graisley MAST - Area 3","R1100"
"Wolverhampton City Council","http://opendatacommunities.org/id/metropolitan-district-council/wolverhampton","Blue Group Interntl Limited T/A Bluecare","HSOC5559905","1,110.00","Agency Staff","130114222","27/04/16","Children in Need & Child Protection","CIN - Graisley MAST - Area 3","R1100"
"Wolverhampton City Council","http://opendatacommunities.org/id/metropolitan-district-council/wolverhampton","Blue Group Interntl Limited T/A Bluecare","HSOC5555247","13.05","Agency Staff","130112029","08/04/16","Children in Need & Child Protection","CIN - Graisley MAST - Area 3","R1100"
"Wolverhampton City Council","http://opendatacommunities.org/id/metropolitan-district-council/wolverhampton","Blue Group Interntl Limited T/A Bluecare","HSOC5555248","11.25","Agency Staff","130112030","08/04/16","Children in Need & Child Protection","CIN - Graisley MAST - Area 3","R1100"
"Wolverhampton City Council","http://opendatacommunities.org/id/metropolitan-district-council/wolverhampton","Blue Group Interntl Limited T/A Bluecare","HSOC5555249","1,369.00","Agency Staff","130112031","08/04/16","Children in Need & Child Protection","CIN - Graisley MAST - Area 3","R1100"
"Wolverhampton City Council","http://opendatacommunities.org/id/metropolitan-district-council/wolverhampton","Blue Group Interntl Limited T/A Bluecare","HSOC5555246","1,110.00","Agency Staff","130112028","08/04/16","Children in Need & Child Protection","CIN - Graisley MAST - Area 3","R1100"
"Wolverhampton City Council","http://opendatacommunities.org/id/metropolitan-district-council/wolverhampton","Blue Mountain Foods Limited","6705","35.00","Provisions (Resale)","130113650","15/04/16","Older People Provider Services","Bradley Lodge Resource Centre","R4102"
"Wolverhampton City Council","http://opendatacommunities.org/id/metropolitan-district-council/wolverhampton","Blue Mountain Foods Limited","6693","76.00","Provisions (Resale)","130112150","13/04/16","Catering","Education Catering - General Overheads","R4102"
"Wolverhampton City Council","http://opendatacommunities.org/id/metropolitan-district-council/wolverhampton","Blue Mountain Foods Limited","6694","57.00","Provisions (Resale)","130112151","13/04/16","Catering","Education Catering - General Overheads","R4102"
"Wolverhampton City Council","http://opendatacommunities.org/id/metropolitan-district-council/wolverhampton","Blue Mountain Foods Limited","6691","252.00","Provisions (Resale)","130112148","13/04/16","Catering","Meals on Wheels","R4102"
"Wolverhampton City Council","http://opendatacommunities.org/id/metropolitan-district-council/wolverhampton","Blue Mountain Foods Limited","6692","14.88","Provisions (Resale)","130112149","13/04/16","Catering","Education Catering - General Overheads","R4102"
"Wolverhampton City Council","http://opendatacommunities.org/id/metropolitan-district-council/wolverhampton","Blue Mountain Foods Limited","6673","280.00","Provisions (Resale)","130110581","22/04/16","Catering","Meals on Wheels","R4102"
"Wolverhampton City Council","http://opendatacommunities.org/id/metropolitan-district-council/wolverhampton","Blue Mountain Foods Limited","6671","245.00","Provisions (Resale)","130110580","22/04/16","Catering","Meals on Wheels","R4102"
"Wolverhampton City Council","http://opendatacommunities.org/id/metropolitan-district-council/wolverhampton","BME Travel","1671","1,800.00","Client Transport","130114135","15/04/16","School Planning & Resources","Special - Transport","R3042"
"Wolverhampton City Council","http://opendatacommunities.org/id/metropolitan-district-council/wolverhampton","Boon Edam Limited","727564","773.00","Computing - Maint Agreements","130115184","22/04/16","Leisure Services","Bert Williams Leisure Centre","R4534"
"Wolverhampton City Council","http://opendatacommunities.org/id/metropolitan-district-council/wolverhampton","Boosey&Hawkes With Music Exchange","3696521","36.72","Equipment - R & M","130111574","01/04/16","School Planning & Resources","Music Support Team","R4003"
"Wolverhampton City Council","http://opendatacommunities.org/id/metropolitan-district-council/wolverhampton","Boosey&Hawkes With Music Exchange","3696521","-36.72","Equipment - R & M","130111574","01/04/16","School Planning & Resources","Music Support Team","R4003"
"Wolverhampton City Council","http://opendatacommunities.org/id/metropolitan-district-council/wolverhampton","Boosey&Hawkes With Music Exchange","3696521","31.97","Equipment - R & M","130111574","01/04/16","School Planning & Resources","Music Support Team","R4003"
"Wolverhampton City Council","http://opendatacommunities.org/id/metropolitan-district-council/wolverhampton","Boots UK Ltd","SMNEPRQ Q42015","140.00","TPP - Public Health Contracts","190224356","22/04/16","Contracts","Alcohol and Drug","R5060"
"Wolverhampton City Council","http://opendatacommunities.org/id/metropolitan-district-council/wolverhampton","Boots UK Ltd","SMNEPIQ Q42015","982.00","TPP - Public Health Contracts","190224355","22/04/16","Contracts","Alcohol and Drug","R5060"
"Wolverhampton City Council","http://opendatacommunities.org/id/metropolitan-district-council/wolverhampton","Boots UK Ltd","SMNEPIQ Q42015","96.00","TPP - Public Health Contracts","190224359","22/04/16","Contracts","Alcohol and Drug","R5060"
"Wolverhampton City Council","http://opendatacommunities.org/id/metropolitan-district-council/wolverhampton","Boots UK Ltd","SMSCOMQ Q42015","4,807.50","TPP - Public Health Contracts","190224357","22/04/16","Contracts","Alcohol and Drug","R5060"
"Wolverhampton City Council","http://opendatacommunities.org/id/metropolitan-district-council/wolverhampton","Boots UK Ltd","SMNEPRQ Q42015","18.00","TPP - Public Health Contracts","190224360","22/04/16","Contracts","Alcohol and Drug","R5060"
"Wolverhampton City Council","http://opendatacommunities.org/id/metropolitan-district-council/wolverhampton","Boots UK Ltd","SMSCOSQ Q42015","1,539.00","TPP - Public Health Contracts","190224358","22/04/16","Contracts","Alcohol and Drug","R5060"
"Wolverhampton City Council","http://opendatacommunities.org/id/metropolitan-district-council/wolverhampton","Boots UK Ltd","SMSCOMQ Q42015","487.50","TPP - Public Health Contracts","190224361","22/04/16","Contracts","Alcohol and Drug","R5060"
"Wolverhampton City Council","http://opendatacommunities.org/id/metropolitan-district-council/wolverhampton","Boots UK Ltd","SMSCOSQ Q42015","336.00","TPP - Public Health Contracts","190224362","22/04/16","Contracts","Alcohol and Drug","R5060"
"Wolverhampton City Council","http://opendatacommunities.org/id/metropolitan-district-council/wolverhampton","Boots UK Ltd","HLNRTPQ Q42015","322.60","TPP - Public Health Contracts","190224669","22/04/16","Contracts","Healthy Lifestyles","R5060"
"Wolverhampton City Council","http://opendatacommunities.org/id/metropolitan-district-council/wolverhampton","Boots UK Ltd","HLNRTPQ Q32015","90.58","TPP - Public Health Contracts","190224671","22/04/16","Contracts","Healthy Lifestyles","R5060"
"Wolverhampton City Council","http://opendatacommunities.org/id/metropolitan-district-council/wolverhampton","Boots UK Ltd","HLNRTPQ Q32015","90.57","TPP - Public Health Contracts","190224670","22/04/16","Contracts","Healthy Lifestyles","R5060"
"Wolverhampton City Council","http://opendatacommunities.org/id/metropolitan-district-council/wolverhampton","Boots UK Ltd","HLNRTPQ Q42015","326.00","TPP - Public Health Contracts","190224668","22/04/16","Contracts","Healthy Lifestyles","R5060"
"Wolverhampton City Council","http://opendatacommunities.org/id/metropolitan-district-council/wolverhampton","Boots UK Ltd","HLNRTPQ Q32015","72.70","TPP - Public Health Contracts","190224667","22/04/16","Contracts","Healthy Lifestyles","R5060"
"Wolverhampton City Council","http://opendatacommunities.org/id/metropolitan-district-council/wolverhampton","Boots UK Ltd","HLNRTPQ Q32015","75.12","TPP - Public Health Contracts","190224674","22/04/16","Contracts","Healthy Lifestyles","R5060"
"Wolverhampton City Council","http://opendatacommunities.org/id/metropolitan-district-council/wolverhampton","Boots UK Ltd","HLNRTPQ Q42015","356.91","TPP - Public Health Contracts","190224672","22/04/16","Contracts","Healthy Lifestyles","R5060"
"Wolverhampton City Council","http://opendatacommunities.org/id/metropolitan-district-council/wolverhampton","Boots UK Ltd","HLNRTPQ Q42015","386.28","TPP - Public Health Contracts","190224673","22/04/16","Contracts","Healthy Lifestyles","R5060"
"Wolverhampton City Council","http://opendatacommunities.org/id/metropolitan-district-council/wolverhampton","Boots UK Ltd","HLNRTPQ Q42015","17.90","TPP - Public Health Contracts","190224675","22/04/16","Contracts","Healthy Lifestyles","R5060"
"Wolverhampton City Council","http://opendatacommunities.org/id/metropolitan-district-council/wolverhampton","Boots UK Ltd","HLNRTPQ Q42015","144.20","TPP - Public Health Contracts","190224676","22/04/16","Contracts","Healthy Lifestyles","R5060"
"Wolverhampton City Council","http://opendatacommunities.org/id/metropolitan-district-council/wolverhampton","Boots UK Ltd","SHEHCLQ Q42015","12.54","TPP - Public Health Contracts","190226922","29/04/16","Contracts","Sexual Health","R5060"
"Wolverhampton City Council","http://opendatacommunities.org/id/metropolitan-district-council/wolverhampton","Boots UK Ltd","SHEHCC16Q Q42015","10.48","TPP - Public Health Contracts","190226923","29/04/16","Contracts","Sexual Health","R5060"
"Wolverhampton City Council","http://opendatacommunities.org/id/metropolitan-district-council/wolverhampton","Boots UK Ltd","SHEHCC24Q Q42015","31.44","TPP - Public Health Contracts","190226924","29/04/16","Contracts","Sexual Health","R5060"
"Wolverhampton City Council","http://opendatacommunities.org/id/metropolitan-district-council/wolverhampton","Boots UK Ltd","SHEHCC24Q Q42015","2,085.52","TPP - Public Health Contracts","190226445","29/04/16","Contracts","Sexual Health","R5060"
"Wolverhampton City Council","http://opendatacommunities.org/id/metropolitan-district-council/wolverhampton","Boots UK Ltd","SHEHCC25Q Q42015","1,435.76","TPP - Public Health Contracts","190226446","29/04/16","Contracts","Sexual Health","R5060"
"Wolverhampton City Council","http://opendatacommunities.org/id/metropolitan-district-council/wolverhampton","Boots UK Ltd","SHEHCC16Q Q42015","125.76","TPP - Public Health Contracts","190226444","29/04/16","Contracts","Sexual Health","R5060"
"Wolverhampton City Council","http://opendatacommunities.org/id/metropolitan-district-council/wolverhampton","Boots UK Ltd","SHEHCLQ Q42015","257.07","TPP - Public Health Contracts","190226450","29/04/16","Contracts","Sexual Health","R5060"
"Wolverhampton City Council","http://opendatacommunities.org/id/metropolitan-district-council/wolverhampton","Boots UK Ltd","SHEHCC25Q Q42015","324.88","TPP - Public Health Contracts","190226449","29/04/16","Contracts","Sexual Health","R5060"
"Wolverhampton City Council","http://opendatacommunities.org/id/metropolitan-district-council/wolverhampton","Boots UK Ltd","SHEHCLQ Q42015","2,106.72","TPP - Public Health Contracts","190226447","29/04/16","Contracts","Sexual Health","R5060"
"Wolverhampton City Council","http://opendatacommunities.org/id/metropolitan-district-council/wolverhampton","Boots UK Ltd","SHEHCC24Q Q42015","104.80","TPP - Public Health Contracts","190226448","29/04/16","Contracts","Sexual Health","R5060"
"Wolverhampton City Council","http://opendatacommunities.org/id/metropolitan-district-council/wolverhampton","Boots UK Ltd","SHEHCC24Q Q42015","20.96","TPP - Public Health Contracts","190226921","29/04/16","Contracts","Sexual Health","R5060"
"Wolverhampton City Council","http://opendatacommunities.org/id/metropolitan-district-council/wolverhampton","Bottomline Technologies Europe Limited","INV477265","21.75","Computing - Repair and Maint","130115675","27/04/16","The Hub","Quality and Improvement","R4533"
"Wolverhampton City Council","http://opendatacommunities.org/id/metropolitan-district-council/wolverhampton","Boulton Travel Limited","BTWCBM3.6","1,520.00","Client Transport","130115211","08/04/16","School Planning & Resources","Special - Transport","R3042"
"Wolverhampton City Council","http://opendatacommunities.org/id/metropolitan-district-council/wolverhampton","Boulton Travel Limited","BTWCBM1.6","1,520.00","Client Transport","130110392","01/04/16","School Planning & Resources","Special - Transport","R3042"
"Wolverhampton City Council","http://opendatacommunities.org/id/metropolitan-district-council/wolverhampton","Boulton Travel Limited","BTWCBM4.6","1,440.00","Client Transport","130110393","01/04/16","School Planning & Resources","Special - Transport","R3042"
"Wolverhampton City Council","http://opendatacommunities.org/id/metropolitan-district-council/wolverhampton","Boulton Travel Limited","BTWCBM5.7","1,620.00","Client Transport","130115403","27/04/16","School Planning & Resources","Special - Transport","R3042"
"Wolverhampton City Council","http://opendatacommunities.org/id/metropolitan-district-council/wolverhampton","Boulton Travel Limited","BTWCBM1.7","1,710.01","Client Transport","130114972","27/04/16","School Planning & Resources","Special - Transport","R3042"
"Wolverhampton City Council","http://opendatacommunities.org/id/metropolitan-district-council/wolverhampton","Boulton Travel Limited","BTWCBM4.7","1,620.00","Client Transport","130114974","27/04/16","School Planning & Resources","Special - Transport","R3042"
"Wolverhampton City Council","http://opendatacommunities.org/id/metropolitan-district-council/wolverhampton","Boulton Travel Limited","BTWCBM3.7","1,710.00","Client Transport","130114973","27/04/16","School Planning & Resources","Special - Transport","R3042"
"Wolverhampton City Council","http://opendatacommunities.org/id/metropolitan-district-council/wolverhampton","Bradley Environmental Consultant Limited","89920","-400.00","Training Expenses","130113529","01/04/16","Audit Services","Site Management Health & Safety","R1650"
"Wolverhampton City Council","http://opendatacommunities.org/id/metropolitan-district-council/wolverhampton","Bradley Environmental Consultant Limited","89920","400.00","Training Expenses","130113529","01/04/16","Audit Services","Site Management Health & Safety","R1650"
"Wolverhampton City Council","http://opendatacommunities.org/id/metropolitan-district-council/wolverhampton","Bradley Environmental Consultant Limited","89920","400.00","Training Expenses","130113529","01/04/16","Audit Services","Site Management Health & Safety","R1650"
"Wolverhampton City Council","http://opendatacommunities.org/id/metropolitan-district-council/wolverhampton","Braitch Solicitors","P11836320160422","299.76","Client Allowances","190225331","27/04/16","Looked After Children","LAC Transitions Team","R6301"
"Wolverhampton City Council","http://opendatacommunities.org/id/metropolitan-district-council/wolverhampton","Brakes/Brakefresh","9237798594","103.59","Provisions (Not for resale)","130114211","08/04/16","Catering","Civic Centre Catering","R4101"
"Wolverhampton City Council","http://opendatacommunities.org/id/metropolitan-district-council/wolverhampton","Brakes/Brakefresh","9237808418","117.77","Provisions (Resale)","130117158","29/04/16","Catering","Civic Centre Catering","R4102"
"Wolverhampton City Council","http://opendatacommunities.org/id/metropolitan-district-council/wolverhampton","Brakes/Brakefresh","9237808418","-117.77","Provisions (Resale)","130117158","29/04/16","Catering","Civic Centre Catering","R4102"
"Wolverhampton City Council","http://opendatacommunities.org/id/metropolitan-district-council/wolverhampton","Brakes/Brakefresh","9237808418","34.72","Provisions (Resale)","130117158","29/04/16","Catering","Civic Centre Catering","R4102"
"Wolverhampton City Council","http://opendatacommunities.org/id/metropolitan-district-council/wolverhampton","Brakes/Brakefresh","9237808418","83.05","Provisions (Resale)","130117158","29/04/16","Catering","Civic Centre Catering","R4102"
"Wolverhampton City Council","http://opendatacommunities.org/id/metropolitan-district-council/wolverhampton","Brakes/Brakefresh","9237794893","116.91","Provisions (Not for resale)","130114210","06/04/16","Catering","Civic Centre Catering","R4101"
"Wolverhampton City Council","http://opendatacommunities.org/id/metropolitan-district-council/wolverhampton","Brakes/Brakefresh","9237783521","139.11","Provisions (Not for resale)","130114209","06/04/16","Catering","Civic Centre Catering","R4101"
"Wolverhampton City Council","http://opendatacommunities.org/id/metropolitan-district-council/wolverhampton","Brakes/Brakefresh","9237783521","-139.11","Provisions (Not for resale)","130114209","06/04/16","Catering","Civic Centre Catering","R4101"
"Wolverhampton City Council","http://opendatacommunities.org/id/metropolitan-district-council/wolverhampton","Brakes/Brakefresh","9237783521","104.39","Provisions (Not for resale)","130114209","06/04/16","Catering","Civic Centre Catering","R4101"
"Wolverhampton City Council","http://opendatacommunities.org/id/metropolitan-district-council/wolverhampton","Brakes/Brakefresh","9237783521","34.72","Provisions (Not for resale)","130114209","06/04/16","Catering","Civic Centre Catering","R4101"
"Wolverhampton City Council","http://opendatacommunities.org/id/metropolitan-district-council/wolverhampton","Brakes/Brakefresh","9237799610","42.31","Provisions (Not for resale)","130116342","15/04/16","Catering","Civic Centre Catering","R4101"
"Wolverhampton City Council","http://opendatacommunities.org/id/metropolitan-district-council/wolverhampton","Brand Creative Media Limited","868","1,085.00","Marketing \ Non-staff advertising","130114948","15/04/16","Standards and Vulnerable Pupils","Parent / Partnership Service","R4317"
"Wolverhampton City Council","http://opendatacommunities.org/id/metropolitan-district-council/wolverhampton","Bridgnorth Road Pharmacy Limited","HLNRTPQ Q42015","47.87","TPP - Public Health Contracts","190224680","22/04/16","Contracts","Healthy Lifestyles","R5060"
"Wolverhampton City Council","http://opendatacommunities.org/id/metropolitan-district-council/wolverhampton","Bridgnorth Road Pharmacy Limited","SHEHCC25Q Q42015","10.48","TPP - Public Health Contracts","190226454","29/04/16","Contracts","Sexual Health","R5060"
"Wolverhampton City Council","http://opendatacommunities.org/id/metropolitan-district-council/wolverhampton","Bridgnorth Road Pharmacy Limited","SHEHCLQ Q42015","6.27","TPP - Public Health Contracts","190226455","29/04/16","Contracts","Sexual Health","R5060"
"Wolverhampton City Council","http://opendatacommunities.org/id/metropolitan-district-council/wolverhampton","Briggs Equiptment UK Limited","107064185","1,239.99","Hire of Vehicles","130116258","15/04/16","Markets","Wholesale Market Facilities Management","R3200"
"Wolverhampton City Council","http://opendatacommunities.org/id/metropolitan-district-council/wolverhampton","Bristol City Council","8003014015","585.80","Materials","130114205","06/04/16","Environmental Maintenance","Ground Maintenance East","R4007"
"Wolverhampton City Council","http://opendatacommunities.org/id/metropolitan-district-council/wolverhampton","Bristow & Sutor","164431","49.77","Bailiff Action","130115988","11/04/16","Revenues & Benefits","Revenues","R9382"
"Wolverhampton City Council","http://opendatacommunities.org/id/metropolitan-district-council/wolverhampton","Bristow & Sutor","164112","30.23","Bailiff Action","130115991","11/04/16","Revenues & Benefits","Revenues","R9382"
"Wolverhampton City Council","http://opendatacommunities.org/id/metropolitan-district-council/wolverhampton","Bristow & Sutor","164427","1,657.82","Bailiff Action","130115989","11/04/16","Revenues & Benefits","Revenues","R9382"
"Wolverhampton City Council","http://opendatacommunities.org/id/metropolitan-district-council/wolverhampton","Bristow & Sutor","164237","137.53","Bailiff Action","130115990","11/04/16","Revenues & Benefits","Revenues","R9382"
"Wolverhampton City Council","http://opendatacommunities.org/id/metropolitan-district-council/wolverhampton","Bristow & Sutor","163987","164.99","Bailiff Action","130115993","11/04/16","Revenues & Benefits","Revenues","R9382"
"Wolverhampton City Council","http://opendatacommunities.org/id/metropolitan-district-council/wolverhampton","Bristow & Sutor","163863","88.92","Bailiff Action","130115994","11/04/16","Revenues & Benefits","Revenues","R9382"
"Wolverhampton City Council","http://opendatacommunities.org/id/metropolitan-district-council/wolverhampton","Bristow & Sutor","163859","2,424.28","Bailiff Action","130115995","11/04/16","Revenues & Benefits","Revenues","R9382"
"Wolverhampton City Council","http://opendatacommunities.org/id/metropolitan-district-council/wolverhampton","Bristow & Sutor","163526 - VAT ONLY","2,165.73","Bailiff Action","130115999","11/04/16","Revenues & Benefits","Revenues","R9382"
"Wolverhampton City Council","http://opendatacommunities.org/id/metropolitan-district-council/wolverhampton","Bristow & Sutor","163657 - VAT ONLY","179.86","Bailiff Action","130115996","11/04/16","Revenues & Benefits","Revenues","R9382"
"Wolverhampton City Council","http://opendatacommunities.org/id/metropolitan-district-council/wolverhampton","Bristow & Sutor","163414 - VAT ONLY","75.37","Bailiff Action","130115997","11/04/16","Revenues & Benefits","Revenues","R9382"
"Wolverhampton City Council","http://opendatacommunities.org/id/metropolitan-district-council/wolverhampton","Bristow & Sutor","163529 - VAT ONLY","19.62","Bailiff Action","130115998","11/04/16","Revenues & Benefits","Revenues","R9382"
"Wolverhampton City Council","http://opendatacommunities.org/id/metropolitan-district-council/wolverhampton","Bristow & Sutor","164979","145.86","Services - Professional Fees","130115751","27/04/16","Revenues & Benefits","Revenues","R4400"
"Wolverhampton City Council","http://opendatacommunities.org/id/metropolitan-district-council/wolverhampton","Bristow & Sutor","157403","10.00","Services - Professional Fees","130110781","27/04/16","Revenues & Benefits","Revenues","R4400"
"Wolverhampton City Council","http://opendatacommunities.org/id/metropolitan-district-council/wolverhampton","Bristow & Sutor","160773","20.00","Services - Professional Fees","130110793","27/04/16","Revenues & Benefits","Revenues","R4400"
"Wolverhampton City Council","http://opendatacommunities.org/id/metropolitan-district-council/wolverhampton","Bristow & Sutor","152666","20.00","Services - Professional Fees","130111299","27/04/16","Revenues & Benefits","Revenues","R4400"
"Wolverhampton City Council","http://opendatacommunities.org/id/metropolitan-district-council/wolverhampton","Bristow & Sutor","159047","5.00","Services - Professional Fees","130110787","27/04/16","Revenues & Benefits","Revenues","R4400"
"Wolverhampton City Council","http://opendatacommunities.org/id/metropolitan-district-council/wolverhampton","Bristow & Sutor","164729","156.45","Services - Professional Fees","130114326","22/04/16","Revenues & Benefits","Revenues","R4400"
"Wolverhampton City Council","http://opendatacommunities.org/id/metropolitan-district-council/wolverhampton","British Gas Trading Limited","BG22-850045409702","370.98","Electricity","190219542","01/04/16","Housing Revenue Account","Hostels / Outreach","R2100"
"Wolverhampton City Council","http://opendatacommunities.org/id/metropolitan-district-council/wolverhampton","British Gas Trading Limited","BG21-850007819162","132.84","Electricity","190219541","01/04/16","Housing Revenue Account","Hostels / Outreach","R2100"
"Wolverhampton City Council","http://opendatacommunities.org/id/metropolitan-district-council/wolverhampton","British Gas Trading Limited","BG23-850026413410","504.20","Electricity","190219592","01/04/16","Housing Revenue Account","Hostels / Outreach","R2100"
"Wolverhampton City Council","http://opendatacommunities.org/id/metropolitan-district-council/wolverhampton","BT (Phone Bills)","CM 6353 4916 Q043 UO","-6.05","Comms - Telephone Call charges","130113502","01/04/16","Adult Education","Old Hall Street Main","R4505"
"Wolverhampton City Council","http://opendatacommunities.org/id/metropolitan-district-council/wolverhampton","BT (Phone Bills)","CM 6353 4916 Q043 UO","80.97","Comms - Telephone Call charges","130113502","01/04/16","Adult Education","Old Hall Street Main","R4505"
"Wolverhampton City Council","http://opendatacommunities.org/id/metropolitan-district-council/wolverhampton","BT (Phone Bills)","CM 6353 4916 Q043 UO","-80.97","Comms - Telephone Call charges","130113502","01/04/16","Adult Education","Old Hall Street Main","R4505"
"Wolverhampton City Council","http://opendatacommunities.org/id/metropolitan-district-council/wolverhampton","BT (Phone Bills)","CM 6353 4916 Q043 UO","80.97","Comms - Telephone Call charges","130113502","01/04/16","Adult Education","Old Hall Street Main","R4505"
"Wolverhampton City Council","http://opendatacommunities.org/id/metropolitan-district-council/wolverhampton","BT (Phone Bills)","CM593703081081Q108UJ","80.97","Fixtures and Fittings - R&M","190219655","01/04/16","Community Centres (Corporate Landlord)","Caretakers Community Centre","R2502"
"Wolverhampton City Council","http://opendatacommunities.org/id/metropolitan-district-council/wolverhampton","BT (Phone Bills)","CM61646492Q069&4","80.97","Fixtures and Fittings - R&M","190219657","01/04/16","Community Centres (Corporate Landlord)","Caretakers Community Centre","R2502"
"Wolverhampton City Council","http://opendatacommunities.org/id/metropolitan-district-council/wolverhampton","BT (Phone Bills)","CM66892145Q019ZT","84.97","Fixtures and Fittings - R&M","190219653","01/04/16","Community Centres (Corporate Landlord)","Caretakers Community Centre","R2502"
"Wolverhampton City Council","http://opendatacommunities.org/id/metropolitan-district-council/wolverhampton","BT (Phone Bills)","CM65714142 S028&0","54.24","Comms - Telephone Rental","190222049","13/04/16","Engineering & Civic Centre","Management of Vacant Properties","R4504"
"Wolverhampton City Council","http://opendatacommunities.org/id/metropolitan-district-council/wolverhampton","BT (Phone Bills)","CM66389395 Q0223X Low Hill Family Centre Alarm","211.93","Fixtures and Fittings - R&M","190221781","13/04/16","Engineering & Civic Centre","Statutory Services (10RM)","R2502"
"Wolverhampton City Council","http://opendatacommunities.org/id/metropolitan-district-council/wolverhampton","BT (Phone Bills)","CM60639707 Q086 UR Centralised Services Alarm","105.97","Fixtures and Fittings - R&M","190221780","13/04/16","Engineering & Civic Centre","Civic Centre","R2502"
"Wolverhampton City Council","http://opendatacommunities.org/id/metropolitan-district-council/wolverhampton","BT (Phone Bills)","CM67907835 Q0080W Bottom Flat Civic Centre Alarm","172.60","Fixtures and Fittings - R&M","190221782","13/04/16","Engineering & Civic Centre","Civic Centre","R2502"
"Wolverhampton City Council","http://opendatacommunities.org/id/metropolitan-district-council/wolverhampton","BT (Phone Bills)","CM68451735 M004O5 Victoria Square Lift Alarm Line","21.01","Fixtures and Fittings - R&M","190221779","13/04/16","Engineering & Civic Centre","Victoria Square, Block 11","R2502"
"Wolverhampton City Council","http://opendatacommunities.org/id/metropolitan-district-council/wolverhampton","BT (Phone Bills)","CM61518572 Q073JA 3rd Floor Pay Phone Maintenance","84.00","Comms - Telephone Rental","190221784","13/04/16","Engineering & Civic Centre","Civic Centre","R4504"
"Wolverhampton City Council","http://opendatacommunities.org/id/metropolitan-district-council/wolverhampton","BT (Phone Bills)","CM68451735 M007 &1 Victoria Square Lift Alarm Line","84.17","Fixtures and Fittings - R&M","190221776","13/04/16","Engineering & Civic Centre","Victoria Square, Block 11","R2502"
"Wolverhampton City Council","http://opendatacommunities.org/id/metropolitan-district-council/wolverhampton","BT (Phone Bills)","CM5940 Q155EZ 3rd Floor Pay Phone Civic Centre","81.10","Comms - Telephone Rental","190221783","13/04/16","Engineering & Civic Centre","Civic Centre","R4504"
"Wolverhampton City Council","http://opendatacommunities.org/id/metropolitan-district-council/wolverhampton","BT (Phone Bills)","CM6845175 M006WV Victoria Square Lift Alarm Line","63.17","Fixtures and Fittings - R&M","190221777","13/04/16","Engineering & Civic Centre","Victoria Square, Block 11","R2502"
"Wolverhampton City Council","http://opendatacommunities.org/id/metropolitan-district-council/wolverhampton","BT (Phone Bills)","25976643 Q012","1,025.45","TPP - Rechargeable Works Costs","130109125","13/04/16","Operation & Maintenance of Existing Network","UTC only � External Rechargeable Works","R5730"
"Wolverhampton City Council","http://opendatacommunities.org/id/metropolitan-district-council/wolverhampton","BT (Phone Bills)","CM 6310 5475 Q048 63","80.99","Comms - Telephone Call charges","130116357","15/04/16","Adult Education","Old Hall Street Main","R4505"
"Wolverhampton City Council","http://opendatacommunities.org/id/metropolitan-district-council/wolverhampton","BT (Phone Bills)","Q209","89.95","Services - Assistive technology","130114484","06/04/16","All Age Disability (Disabilities)","CSDP","R4407"
"Wolverhampton City Council","http://opendatacommunities.org/id/metropolitan-district-council/wolverhampton","BT (Phone Bills)","GB12104623 M031","38.00","Comms - Telephone Rental","130105356","06/04/16","Operation & Maintenance of Existing Network","UTC Wolverhampton","R4504"
"Wolverhampton City Council","http://opendatacommunities.org/id/metropolitan-district-council/wolverhampton","BT (Phone Bills)","CM 6076 9175 Q083 H5","332.85","Comms - Radios","130117014","20/04/16","ICTS","Strategic ICTS (ICT Service Budget)","R4508"
"Wolverhampton City Council","http://opendatacommunities.org/id/metropolitan-district-council/wolverhampton","BT (Phone Bills)","CM66892145Q019ZT(2)","60.00","Fixtures and Fittings - R&M","190219654","01/04/16","Community Centres (Corporate Landlord)","Caretakers Community Centre","R2502"
"Wolverhampton City Council","http://opendatacommunities.org/id/metropolitan-district-council/wolverhampton","BT (Phone Bills)","CM593703081081Q108UJ(2)","30.00","Fixtures and Fittings - R&M","190219656","01/04/16","Community Centres (Corporate Landlord)","Caretakers Community Centre","R2502"
"Wolverhampton City Council","http://opendatacommunities.org/id/metropolitan-district-council/wolverhampton","BT (Phone Bills)","CM60725087Q085MU","30.00","Fixtures and Fittings - R&M","190219651","01/04/16","Community Centres (Corporate Landlord)","Caretakers Community Centre","R2502"
"Wolverhampton City Council","http://opendatacommunities.org/id/metropolitan-district-council/wolverhampton","BT (Phone Bills)","CM61646492Q069&4(2)","30.00","Fixtures and Fittings - R&M","190219658","01/04/16","Community Centres (Corporate Landlord)","Caretakers Community Centre","R2502"
"Wolverhampton City Council","http://opendatacommunities.org/id/metropolitan-district-council/wolverhampton","BT (Phone Bills)","CM60725087Q085MU(2)","99.97","Fixtures and Fittings - R&M","190219652","01/04/16","Community Centres (Corporate Landlord)","Caretakers Community Centre","R2502"
"Wolverhampton City Council","http://opendatacommunities.org/id/metropolitan-district-council/wolverhampton","BT (Phone Bills)","Q071HX","126.49","Comms - Telephone Rental","190225040","22/04/16","Leisure Services","Aldersley Leisure Village","R4504"
"Wolverhampton City Council","http://opendatacommunities.org/id/metropolitan-district-council/wolverhampton","BT (Phone Bills)","CM59024161 Q108R1","143.21","Comms - Telephone Rental","190223873","20/04/16","Engineering & Civic Centre","Management of Vacant Properties","R4504"
"Wolverhampton City Council","http://opendatacommunities.org/id/metropolitan-district-council/wolverhampton","BT (Phone Bills)","CM59966476 Q097W2","44.66","Fixtures and Fittings - R&M","190223892","20/04/16","Community Centres (Corporate Landlord)","Caretakers Community Centre","R2502"
"Wolverhampton City Council","http://opendatacommunities.org/id/metropolitan-district-council/wolverhampton","BT (Phone Bills)","CM59355938 Q10805","85.65","Fixtures and Fittings - R&M","190223895","20/04/16","Community Centres (Corporate Landlord)","Caretakers Community Centre","R2502"
"Wolverhampton City Council","http://opendatacommunities.org/id/metropolitan-district-council/wolverhampton","BT (Phone Bills)","CM60158329 Q09324","80.97","Fixtures and Fittings - R&M","190223891","20/04/16","Community Centres (Corporate Landlord)","Caretakers Community Centre","R2502"
"Wolverhampton City Council","http://opendatacommunities.org/id/metropolitan-district-council/wolverhampton","BT (Phone Bills)","CM64920657 Q0314J","80.97","Fixtures and Fittings - R&M","190223890","20/04/16","Cleaning & Caretaking Service","Bilston Town Hall","R2502"
"Wolverhampton City Council","http://opendatacommunities.org/id/metropolitan-district-council/wolverhampton","BT (Phone Bills)","CM63816541 Q04021","97.69","Fixtures and Fittings - R&M","190223896","20/04/16","Community Centres (Corporate Landlord)","Caretakers Community Centre","R2502"
"Wolverhampton City Council","http://opendatacommunities.org/id/metropolitan-district-council/wolverhampton","BT (Phone Bills)","CM59689433 Q10112 (2)","105.97","Fixtures and Fittings - R&M","190223894","20/04/16","Community Centres (Corporate Landlord)","Caretakers Community Centre","R2502"
"Wolverhampton City Council","http://opendatacommunities.org/id/metropolitan-district-council/wolverhampton","BT (Phone Bills)","CM59689433 Q10112","95.97","Fixtures and Fittings - R&M","190223893","20/04/16","Community Centres (Corporate Landlord)","Caretakers Community Centre","R2502"
"Wolverhampton City Council","http://opendatacommunities.org/id/metropolitan-district-council/wolverhampton","BT (Phone Bills)","CM68451735 M005S2 Victoria Square Lift Alarm Line","42.11","Fixtures and Fittings - R&M","190221778","13/04/16","Engineering & Civic Centre","Victoria Square, Block 11","R2502"
"Wolverhampton City Council","http://opendatacommunities.org/id/metropolitan-district-council/wolverhampton","BT (Phone Bills)","CM 5937 1307 Q105 LC","91.52","Comms - Telephone Rental","130109311","27/04/16","Engineering & Civic Centre","Management of Vacant Properties","R4504"
"Wolverhampton City Council","http://opendatacommunities.org/id/metropolitan-district-council/wolverhampton","BT (Phone Bills)","CM 5937 1307 Q105 LC","20.00","Comms - Telephone Rental","130109311","27/04/16","Engineering & Civic Centre","Management of Vacant Properties","R4504"
"Wolverhampton City Council","http://opendatacommunities.org/id/metropolitan-district-council/wolverhampton","BT (Phone Bills)","CM 5937 1307 Q107 TY","81.56","Comms - Telephone Rental","130109313","27/04/16","Engineering & Civic Centre","Management of Vacant Properties","R4504"
"Wolverhampton City Council","http://opendatacommunities.org/id/metropolitan-district-council/wolverhampton","BT (Phone Bills)","CM 5937 1307 Q106 p1","81.56","Comms - Telephone Rental","130109312","27/04/16","Engineering & Civic Centre","Management of Vacant Properties","R4504"
"Wolverhampton City Council","http://opendatacommunities.org/id/metropolitan-district-council/wolverhampton","BT (Phone Bills)","CM 5937 1307 Q106 p1","20.00","Comms - Telephone Rental","130109312","27/04/16","Engineering & Civic Centre","Management of Vacant Properties","R4504"
"Wolverhampton City Council","http://opendatacommunities.org/id/metropolitan-district-council/wolverhampton","BT (Phone Bills)","GB12104623 M033","38.00","Grants paid out","130114219","20/04/16","","West Midlands UTC","C5000"
"Wolverhampton City Council","http://opendatacommunities.org/id/metropolitan-district-council/wolverhampton","BT (Phone Bills)","25964117 Q060","1,229.73","Computing - Internet","130109124","27/04/16","ICTS","Strategic ICTS","R4537"
"Wolverhampton City Council","http://opendatacommunities.org/id/metropolitan-district-council/wolverhampton","BT (Phone Bills)","CM 5972 4074 Q102 6P","97.98","Comms - Telephone Call charges","130117162","29/04/16","Markets","Wolverhampton Indoor and Open Market","R4505"
"Wolverhampton City Council","http://opendatacommunities.org/id/metropolitan-district-council/wolverhampton","BT (Phone Bills)","CM64920663 Q031IN","81.25","Fixtures and Fittings - R&M","190227059","29/04/16","Cleaning & Caretaking Service","Bilston Town Hall","R2502"
"Wolverhampton City Council","http://opendatacommunities.org/id/metropolitan-district-council/wolverhampton","British Telecommunications PLC","CM60504979 Q087TR","93.27","Comms - Telephone Rental","130114612","06/04/16","Markets","Wolverhampton Indoor and Open Market","R4504"
"Wolverhampton City Council","http://opendatacommunities.org/id/metropolitan-district-council/wolverhampton","British Telecommunications PLC","Q102 6P","97.98","Comms - Telephone Rental","130114614","06/04/16","Markets","Wolverhampton Indoor and Open Market","R4504"
"Wolverhampton City Council","http://opendatacommunities.org/id/metropolitan-district-council/wolverhampton","British Telecommunications PLC","Q088X5","80.97","Comms - Telephone Rental","130114613","06/04/16","Markets","Wolverhampton Indoor and Open Market","R4504"
"Wolverhampton City Council","http://opendatacommunities.org/id/metropolitan-district-council/wolverhampton","British Telecommunications PLC","CM5928 5802 Q108 CS","92.67","Comms - Telephone Rental","130114615","06/04/16","Markets","Bilston Market and Licensed Operations","R4504"
"Wolverhampton City Council","http://opendatacommunities.org/id/metropolitan-district-council/wolverhampton","British Telecommunications PLC","CM5928 5802 Q108 CS","-92.67","Comms - Telephone Rental","130114615","06/04/16","Markets","Bilston Market and Licensed Operations","R4504"
"Wolverhampton City Council","http://opendatacommunities.org/id/metropolitan-district-council/wolverhampton","British Telecommunications PLC","CM5928 5802 Q108 CS","62.67","Comms - Telephone Rental","130114615","06/04/16","Markets","Bilston Market and Licensed Operations","R4504"
"Wolverhampton City Council","http://opendatacommunities.org/id/metropolitan-district-council/wolverhampton","British Telecommunications PLC","CM5928 5802 Q108 CS","30.00","Comms - Telephone Rental","130114615","06/04/16","Markets","Bilston Market and Licensed Operations","R4504"
"Wolverhampton City Council","http://opendatacommunities.org/id/metropolitan-district-council/wolverhampton","British Telecommunications-Openreach","525864","4,881.28","Services - Fees and Charges","130117679","27/04/16","Housing Revenue Account","HRA General","R4401"
"Wolverhampton City Council","http://opendatacommunities.org/id/metropolitan-district-council/wolverhampton","British Telecommunications-Openreach","15823492","120.00","Grants paid out","190226734","29/04/16","","GF - Broadband Vouchers","C5000"
"Wolverhampton City Council","http://opendatacommunities.org/id/metropolitan-district-council/wolverhampton","British Telecommunications-Openreach","15985119","120.00","Grants paid out","190226736","29/04/16","","GF - Broadband Vouchers","C5000"
"Wolverhampton City Council","http://opendatacommunities.org/id/metropolitan-district-council/wolverhampton","British Telecommunications-Openreach","15807313","120.00","Grants paid out","190226733","29/04/16","","GF - Broadband Vouchers","C5000"
"Wolverhampton City Council","http://opendatacommunities.org/id/metropolitan-district-council/wolverhampton","British Telecommunications-Openreach","15783622","120.00","Grants paid out","190226735","29/04/16","","GF - Broadband Vouchers","C5000"
"Wolverhampton City Council","http://opendatacommunities.org/id/metropolitan-district-council/wolverhampton","British Telecommunications-Openreach","15735639","120.00","Grants paid out","190226732","29/04/16","","GF - Broadband Vouchers","C5000"
"Wolverhampton City Council","http://opendatacommunities.org/id/metropolitan-district-council/wolverhampton","British Telecommunications-Openreach","15754081","120.00","Grants paid out","190226737","29/04/16","","GF - Broadband Vouchers","C5000"
"Wolverhampton City Council","http://opendatacommunities.org/id/metropolitan-district-council/wolverhampton","British Telecommunications-Openreach","15659088","120.00","Grants paid out","190226738","29/04/16","","GF - Broadband Vouchers","C5000"
"Wolverhampton City Council","http://opendatacommunities.org/id/metropolitan-district-council/wolverhampton","British Telecommunications-Openreach","WM41126594","3,000.00","Grants paid out","190226743","29/04/16","","GF - Broadband Vouchers","C5000"
"Wolverhampton City Council","http://opendatacommunities.org/id/metropolitan-district-council/wolverhampton","British Telecommunications-Openreach","WM41218994","3,000.00","Grants paid out","190226744","29/04/16","","GF - Broadband Vouchers","C5000"
"Wolverhampton City Council","http://opendatacommunities.org/id/metropolitan-district-council/wolverhampton","British Telecommunications-Openreach","WM41059722","3,000.00","Grants paid out","190226739","29/04/16","","GF - Broadband Vouchers","C5000"
"Wolverhampton City Council","http://opendatacommunities.org/id/metropolitan-district-council/wolverhampton","British Telecommunications-Openreach","15758703","120.00","Grants paid out","190226748","29/04/16","","GF - Broadband Vouchers","C5000"
"Wolverhampton City Council","http://opendatacommunities.org/id/metropolitan-district-council/wolverhampton","British Telecommunications-Openreach","15759718","120.00","Grants paid out","190226745","29/04/16","","GF - Broadband Vouchers","C5000"
"Wolverhampton City Council","http://opendatacommunities.org/id/metropolitan-district-council/wolverhampton","British Telecommunications-Openreach","15810691","120.00","Grants paid out","190226741","29/04/16","","GF - Broadband Vouchers","C5000"
"Wolverhampton City Council","http://opendatacommunities.org/id/metropolitan-district-council/wolverhampton","British Telecommunications-Openreach","15810919","120.00","Grants paid out","190226746","29/04/16","","GF - Broadband Vouchers","C5000"
"Wolverhampton City Council","http://opendatacommunities.org/id/metropolitan-district-council/wolverhampton","British Telecommunications-Openreach","15814966","120.00","Grants paid out","190226740","29/04/16","","GF - Broadband Vouchers","C5000"
"Wolverhampton City Council","http://opendatacommunities.org/id/metropolitan-district-council/wolverhampton","British Telecommunications-Openreach","BTSA1750","120.00","Grants paid out","190226747","29/04/16","","GF - Broadband Vouchers","C5000"
"Wolverhampton City Council","http://opendatacommunities.org/id/metropolitan-district-council/wolverhampton","British Telecommunications-Openreach","2732258","120.00","Grants paid out","190226742","29/04/16","","GF - Broadband Vouchers","C5000"
"Wolverhampton City Council","http://opendatacommunities.org/id/metropolitan-district-council/wolverhampton","British Telecommunications-Openreach","2823910","120.00","Grants paid out","190226757","29/04/16","","GF - Broadband Vouchers","C5000"
"Wolverhampton City Council","http://opendatacommunities.org/id/metropolitan-district-council/wolverhampton","British Telecommunications-Openreach","15819667","120.00","Grants paid out","190226750","29/04/16","","GF - Broadband Vouchers","C5000"
"Wolverhampton City Council","http://opendatacommunities.org/id/metropolitan-district-council/wolverhampton","British Telecommunications-Openreach","15823371","120.00","Grants paid out","190226755","29/04/16","","GF - Broadband Vouchers","C5000"
"Wolverhampton City Council","http://opendatacommunities.org/id/metropolitan-district-council/wolverhampton","British Telecommunications-Openreach","15744803","120.00","Grants paid out","190226753","29/04/16","","GF - Broadband Vouchers","C5000"
"Wolverhampton City Council","http://opendatacommunities.org/id/metropolitan-district-council/wolverhampton","British Telecommunications-Openreach","15785323","120.00","Grants paid out","190226749","29/04/16","","GF - Broadband Vouchers","C5000"
"Wolverhampton City Council","http://opendatacommunities.org/id/metropolitan-district-council/wolverhampton","British Telecommunications-Openreach","15638194","120.00","Grants paid out","190226756","29/04/16","","GF - Broadband Vouchers","C5000"
"Wolverhampton City Council","http://opendatacommunities.org/id/metropolitan-district-council/wolverhampton","British Telecommunications-Openreach","15688713","120.00","Grants paid out","190226754","29/04/16","","GF - Broadband Vouchers","C5000"
"Wolverhampton City Council","http://opendatacommunities.org/id/metropolitan-district-council/wolverhampton","British Telecommunications-Openreach","15724168","120.00","Grants paid out","190226752","29/04/16","","GF - Broadband Vouchers","C5000"
"Wolverhampton City Council","http://opendatacommunities.org/id/metropolitan-district-council/wolverhampton","British Telecommunications-Openreach","15638132","120.00","Grants paid out","190226751","29/04/16","","GF - Broadband Vouchers","C5000"
"Wolverhampton City Council","http://opendatacommunities.org/id/metropolitan-district-council/wolverhampton","British Telecommunications-Openreach","15715879","120.00","Grants paid out","190226758","29/04/16","","GF - Broadband Vouchers","C5000"
"Wolverhampton City Council","http://opendatacommunities.org/id/metropolitan-district-council/wolverhampton","British Telecommunications-Openreach","15687145","120.00","Grants paid out","190226761","29/04/16","","GF - Broadband Vouchers","C5000"
"Wolverhampton City Council","http://opendatacommunities.org/id/metropolitan-district-council/wolverhampton","British Telecommunications-Openreach","15805273","120.00","Grants paid out","190226760","29/04/16","","GF - Broadband Vouchers","C5000"
"Wolverhampton City Council","http://opendatacommunities.org/id/metropolitan-district-council/wolverhampton","British Telecommunications-Openreach","15783869","120.00","Grants paid out","190226762","29/04/16","","GF - Broadband Vouchers","C5000"
"Wolverhampton City Council","http://opendatacommunities.org/id/metropolitan-district-council/wolverhampton","British Telecommunications-Openreach","2211803","120.00","Grants paid out","190226759","29/04/16","","GF - Broadband Vouchers","C5000"
"Wolverhampton City Council","http://opendatacommunities.org/id/metropolitan-district-council/wolverhampton","Brooklands Pharmacy","SMSCOSQ Q42015","369.00","TPP - Public Health Contracts","190224370","22/04/16","Contracts","Alcohol and Drug","R5060"
"Wolverhampton City Council","http://opendatacommunities.org/id/metropolitan-district-council/wolverhampton","Brooklands Pharmacy","SMSCOMQ Q42015","630.00","TPP - Public Health Contracts","190224369","22/04/16","Contracts","Alcohol and Drug","R5060"
"Wolverhampton City Council","http://opendatacommunities.org/id/metropolitan-district-council/wolverhampton","Brooklands Pharmacy","SMNEPRQ Q42015","18.00","TPP - Public Health Contracts","190224368","22/04/16","Contracts","Alcohol and Drug","R5060"
"Wolverhampton City Council","http://opendatacommunities.org/id/metropolitan-district-council/wolverhampton","Brooklands Pharmacy","SMNEPIQ Q42015","124.00","TPP - Public Health Contracts","190224367","22/04/16","Contracts","Alcohol and Drug","R5060"
"Wolverhampton City Council","http://opendatacommunities.org/id/metropolitan-district-council/wolverhampton","Brophy Grounds Maintenance Limited","90495846","91,525.00","Grounds Maintenance - Contract","130110599","06/04/16","Environmental Maintenance","Ground Maintenance West","R2075"
"Wolverhampton City Council","http://opendatacommunities.org/id/metropolitan-district-council/wolverhampton","Brophy Grounds Maintenance Limited","90495846","-91,525.00","Grounds Maintenance - Contract","130110599","06/04/16","Environmental Maintenance","Ground Maintenance West","R2075"
"Wolverhampton City Council","http://opendatacommunities.org/id/metropolitan-district-council/wolverhampton","Brophy Grounds Maintenance Limited","90495846","87,775.00","Grounds Maintenance - Contract","130110599","06/04/16","Environmental Maintenance","Ground Maintenance West","R2075"
"Wolverhampton City Council","http://opendatacommunities.org/id/metropolitan-district-council/wolverhampton","Brophy Grounds Maintenance Limited","90495846","3,750.00","Grounds Maintenance - Contract","130110599","06/04/16","Environmental Maintenance","Ground Maintenance West","R2075"
"Wolverhampton City Council","http://opendatacommunities.org/id/metropolitan-district-council/wolverhampton","Brophy Grounds Maintenance Limited","90488857","-625.00","Grounds Maintenance - Contract","130106618","06/04/16","Environmental Maintenance","Ground Maintenance West","R2075"
"Wolverhampton City Council","http://opendatacommunities.org/id/metropolitan-district-council/wolverhampton","Brophy Grounds Maintenance Limited","90488857","625.00","Grounds Maintenance - Contract","130106618","06/04/16","Environmental Maintenance","Ground Maintenance West","R2075"
"Wolverhampton City Council","http://opendatacommunities.org/id/metropolitan-district-council/wolverhampton","Brophy Grounds Maintenance Limited","90488857","625.00","Grounds Maintenance - Contract","130106618","06/04/16","Environmental Maintenance","Ground Maintenance West","R2075"
"Wolverhampton City Council","http://opendatacommunities.org/id/metropolitan-district-council/wolverhampton","Brophy Grounds Maintenance Limited","90481717","91,525.00","Grounds Maintenance - Contract","130114961","27/04/16","Environmental Maintenance","Ground Maintenance West","R2075"
"Wolverhampton City Council","http://opendatacommunities.org/id/metropolitan-district-council/wolverhampton","Brophy Grounds Maintenance Limited","90481717","-91,525.00","Grounds Maintenance - Contract","130114961","27/04/16","Environmental Maintenance","Ground Maintenance West","R2075"
"Wolverhampton City Council","http://opendatacommunities.org/id/metropolitan-district-council/wolverhampton","Brophy Grounds Maintenance Limited","90481717","87,775.00","Grounds Maintenance - Contract","130114961","27/04/16","Environmental Maintenance","Ground Maintenance West","R2075"
"Wolverhampton City Council","http://opendatacommunities.org/id/metropolitan-district-council/wolverhampton","Brophy Grounds Maintenance Limited","90481717","3,750.00","Grounds Maintenance - Contract","130114961","27/04/16","Environmental Maintenance","Ground Maintenance West","R2075"
"Wolverhampton City Council","http://opendatacommunities.org/id/metropolitan-district-council/wolverhampton","Brophy Grounds Maintenance Limited","90482408","-625.00","Grounds Maintenance - Contract","130103160","06/04/16","Environmental Maintenance","Ground Maintenance West","R2075"
"Wolverhampton City Council","http://opendatacommunities.org/id/metropolitan-district-council/wolverhampton","Browne Jacobson Llp","319139","2,210.00","Services - Professional Fees","130114893","15/04/16","HR Advice","Equal Pay","R4400"
"Wolverhampton City Council","http://opendatacommunities.org/id/metropolitan-district-council/wolverhampton","Browne Jacobson Llp","319141","1,284.50","Services - Professional Fees","130114894","15/04/16","HR Advice","Equal Pay","R4400"
"Wolverhampton City Council","http://opendatacommunities.org/id/metropolitan-district-council/wolverhampton","Browne Jacobson Llp","TP130088/LG 320423","3,282.50","Insurance - General","190222046","13/04/16","Audit Services","Legal Liability","R4962"
"Wolverhampton City Council","http://opendatacommunities.org/id/metropolitan-district-council/wolverhampton","Browne Jacobson Llp","TP080241/LG 315879","4,000.00","Insurance - General","190220728","06/04/16","Audit Services","Legal Liability","R4962"
"Wolverhampton City Council","http://opendatacommunities.org/id/metropolitan-district-council/wolverhampton","Bruel & Kjaer UK Limited","3056262","398.24","Equipment - Purchase","130115341","13/04/16","Regulatory Services","Air Quality and Noise","R4000"
"Wolverhampton City Council","http://opendatacommunities.org/id/metropolitan-district-council/wolverhampton","BT (Business)","CP 0003 8503 M011 HW","300.21","Services - Fees and Charges","130114483","15/04/16","Leisure Services","Aldersley Leisure Village","R4401"
"Wolverhampton City Council","http://opendatacommunities.org/id/metropolitan-district-council/wolverhampton","BT (Business)","CP 0003 8503 M011 HW","-300.21","Services - Fees and Charges","130114483","15/04/16","Leisure Services","Aldersley Leisure Village","R4401"
"Wolverhampton City Council","http://opendatacommunities.org/id/metropolitan-district-council/wolverhampton","BT (Business)","CP 0003 8503 M011 HW","270.21","Services - Fees and Charges","130114483","15/04/16","Leisure Services","Aldersley Leisure Village","R4401"
"Wolverhampton City Council","http://opendatacommunities.org/id/metropolitan-district-council/wolverhampton","BT (Business)","CP 0003 8503 M011 HW","30.00","Services - Fees and Charges","130114483","15/04/16","Leisure Services","Aldersley Leisure Village","R4401"
"Wolverhampton City Council","http://opendatacommunities.org/id/metropolitan-district-council/wolverhampton","BT (Business)","IN03333590","54.23","Equipment - Purchase","130113219","13/04/16","School Planning & Resources","Education Data Services","R4000"
"Wolverhampton City Council","http://opendatacommunities.org/id/metropolitan-district-council/wolverhampton","BT Global","410202","1,576.00","Plant, Equipment, Machinery & Computer Hardware","130114170","15/04/16","","Integrated Transport","C3000"
"Wolverhampton City Council","http://opendatacommunities.org/id/metropolitan-district-council/wolverhampton","BT Global","410285","674.80","Construction and Conversion","130114405","15/04/16","","Integrated Transport","C1100"
"Wolverhampton City Council","http://opendatacommunities.org/id/metropolitan-district-council/wolverhampton","BT Global","409919","16,028.00","Construction and Conversion","130113791","15/04/16","","Westside","C1100"
"Wolverhampton City Council","http://opendatacommunities.org/id/metropolitan-district-council/wolverhampton","BT Global","410109","29,129.00","TPP - Rechargeable Works Costs","130113792","15/04/16","Operation & Maintenance of Existing Network","UTC only � External Rechargeable Works","R5730"
"Wolverhampton City Council","http://opendatacommunities.org/id/metropolitan-district-council/wolverhampton","Bulk Minerals Limited","000490","153.26","Materials","130114752","27/04/16","Environmental Maintenance","Direct Schools","R4007"
"Wolverhampton City Council","http://opendatacommunities.org/id/metropolitan-district-council/wolverhampton","Bulk Minerals Limited","000498","-153.26","Materials","130116010","27/04/16","Environmental Maintenance","Direct Schools","R4007"
"Wolverhampton City Council","http://opendatacommunities.org/id/metropolitan-district-council/wolverhampton","Bulk Minerals Limited","000517","154.23","Materials","130116763","27/04/16","Highways Maintenance","Planned Highways Maintenance","R4007"
"Wolverhampton City Council","http://opendatacommunities.org/id/metropolitan-district-council/wolverhampton","United Living","SI/002907","106,249.00","Construction and Conversion","130116928","20/04/16","","Refurbishment of Voids","C1100"
"Wolverhampton City Council","http://opendatacommunities.org/id/metropolitan-district-council/wolverhampton","United Living","SI/002905","147,175.00","Construction and Conversion","130116926","20/04/16","","Structural works","C1100"
"Wolverhampton City Council","http://opendatacommunities.org/id/metropolitan-district-council/wolverhampton","United Living","SI/002902","124,606.00","Construction and Conversion","130116923","20/04/16","","Decent Homes - Stock Improvements","C1100"
"Wolverhampton City Council","http://opendatacommunities.org/id/metropolitan-district-council/wolverhampton","United Living","SI/002904","445,946.00","Construction and Conversion","130116925","20/04/16","","Decent Homes - Stock Improvements","C1100"
"Wolverhampton City Council","http://opendatacommunities.org/id/metropolitan-district-council/wolverhampton","United Living","SI/002903","152,505.00","Construction and Conversion","130116924","20/04/16","","Decent Homes - Stock Condition","C1100"
"Wolverhampton City Council","http://opendatacommunities.org/id/metropolitan-district-council/wolverhampton","United Living","SI/002910","102,138.00","Construction and Conversion","130117227","20/04/16","","Decent Homes - Stock Improvements","C1100"
"Wolverhampton City Council","http://opendatacommunities.org/id/metropolitan-district-council/wolverhampton","United Living","SI/002906","51,399.00","Construction and Conversion","130117225","20/04/16","","New Build infill schemes","C1100"
"Wolverhampton City Council","http://opendatacommunities.org/id/metropolitan-district-council/wolverhampton","United Living","SI/002908","235,174.00","Construction and Conversion","130117226","20/04/16","","Decent Homes - Stock Improvements","C1100"
"Wolverhampton City Council","http://opendatacommunities.org/id/metropolitan-district-council/wolverhampton","United Living","SI/002909","30,727.00","R&M - Departmental planned (external)","130117058","20/04/16","Housing Revenue Account","Amounts to be Settled with Wolverhampton Homes","R2001"
"Wolverhampton City Council","http://opendatacommunities.org/id/metropolitan-district-council/wolverhampton","Bytes Software Services Limited","441352","309.64","Plant, Equipment, Machinery & Computer Hardware","130113633","15/04/16","","ICT General Programme","C3000"
"Wolverhampton City Council","http://opendatacommunities.org/id/metropolitan-district-council/wolverhampton","C P Davidson & Sons Limited","35050638","130.00","Services - Professional Fees","190221496","13/04/16","Fleet Services","Fleet Management","R4400"
"Wolverhampton City Council","http://opendatacommunities.org/id/metropolitan-district-council/wolverhampton","C P Davidson & Sons Limited","35050638","65.00","Services - Professional Fees","190221496","13/04/16","Fleet Services","Fleet Management","R4400"
"Wolverhampton City Council","http://opendatacommunities.org/id/metropolitan-district-council/wolverhampton","C P Davidson & Sons Limited","35050638","140.25","Services - Professional Fees","190221496","13/04/16","Fleet Services","Fleet Management","R4400"
"Wolverhampton City Council","http://opendatacommunities.org/id/metropolitan-district-council/wolverhampton","Caci Limited (Social Software)","ES08288","2,800.00","Computing - Maint Agreements","130113472","13/04/16","Youth Offending","Youth Offending Team","R4534"
"Wolverhampton City Council","http://opendatacommunities.org/id/metropolitan-district-council/wolverhampton","Canon (UK) Limited","8175026","761.00","Stationery","130113894","13/04/16","Planning","Planning","R4308"
"Wolverhampton City Council","http://opendatacommunities.org/id/metropolitan-district-council/wolverhampton","Canon (UK) Limited","9120670","1,047.62","Printing","130115863","27/04/16","Planning","Planning","R4300"
"Wolverhampton City Council","http://opendatacommunities.org/id/metropolitan-district-council/wolverhampton","Capita Resourcing Limited","01521541","9.90","Agency Staff","130111253","01/04/16","Older People Assessment & Care Management","Assessment Team (East)","R1100"
"Wolverhampton City Council","http://opendatacommunities.org/id/metropolitan-district-council/wolverhampton","Capita Resourcing Limited","01521544","4.50","Agency Staff","130111256","01/04/16","Older People Assessment & Care Management","Assessment Team (East)","R1100"
"Wolverhampton City Council","http://opendatacommunities.org/id/metropolitan-district-council/wolverhampton","Capita Resourcing Limited","01521542","15.75","Agency Staff","130111254","01/04/16","Older People Assessment & Care Management","Assessment Team (East)","R1100"
"Wolverhampton City Council","http://opendatacommunities.org/id/metropolitan-district-council/wolverhampton","Capita Resourcing Limited","01521543","3.60","Agency Staff","130111255","01/04/16","Older People Assessment & Care Management","Assessment Team (East)","R1100"
"Wolverhampton City Council","http://opendatacommunities.org/id/metropolitan-district-council/wolverhampton","Capita Resourcing Limited","01523477","967.50","Agency Staff","130114291","20/04/16","Physical Disabilities Assessment","Physical & Sensory Disabilities Management","R1100"
"Wolverhampton City Council","http://opendatacommunities.org/id/metropolitan-district-council/wolverhampton","Capita Resourcing Limited","01523478","1,130.50","Agency Staff","130114292","20/04/16","Physical Disabilities Assessment","Physical & Sensory Disabilities Management","R1100"
"Wolverhampton City Council","http://opendatacommunities.org/id/metropolitan-district-council/wolverhampton","Capita Resourcing Limited","01522856","999.75","Agency Staff","130113541","13/04/16","Physical Disabilities Assessment","Physical & Sensory Disabilities Management","R1100"
"Wolverhampton City Council","http://opendatacommunities.org/id/metropolitan-district-council/wolverhampton","Capita Resourcing Limited","01522857","1,230.25","Agency Staff","130113542","13/04/16","Physical Disabilities Assessment","Physical & Sensory Disabilities Management","R1100"
"Wolverhampton City Council","http://opendatacommunities.org/id/metropolitan-district-council/wolverhampton","Capita Resourcing Limited","01523473","273.76","Agency Staff","130114287","20/04/16","Emergency Duty Team","Emergency Duty Team","R1100"
"Wolverhampton City Council","http://opendatacommunities.org/id/metropolitan-district-council/wolverhampton","Capita Resourcing Limited","01523485","1,095.48","Agency Staff","130114298","20/04/16","Older People Assessment & Care Management","Assessment Team (East)","R1100"
"Wolverhampton City Council","http://opendatacommunities.org/id/metropolitan-district-council/wolverhampton","Capita Resourcing Limited","01491435","143.37","Agency Staff","130111241","06/04/16","Learning Disability Provider","Duke Street Bungalows","R1100"
"Wolverhampton City Council","http://opendatacommunities.org/id/metropolitan-district-council/wolverhampton","Capita Resourcing Limited","01523487","15.30","Agency Staff","130114300","20/04/16","Children in Need & Child Protection","CIN - Graisley MAST - Area 3","R1100"
"Wolverhampton City Council","http://opendatacommunities.org/id/metropolitan-district-council/wolverhampton","Capita Resourcing Limited","01523469","1,415.25","Agency Staff","130114283","20/04/16","Children in Need & Child Protection","CIN - Graisley MAST - Area 3","R1100"
"Wolverhampton City Council","http://opendatacommunities.org/id/metropolitan-district-council/wolverhampton","Capita Resourcing Limited","01523486","9.90","Agency Staff","130114299","20/04/16","Children in Need & Child Protection","CIN - Graisley MAST - Area 3","R1100"
"Wolverhampton City Council","http://opendatacommunities.org/id/metropolitan-district-council/wolverhampton","Capita Resourcing Limited","01509568","80.61","Agency Staff","130113303","06/04/16","Physical Disabilities Assessment","Physical & Sensory Disabilities Management","R1100"
"Wolverhampton City Council","http://opendatacommunities.org/id/metropolitan-district-council/wolverhampton","Capita Resourcing Limited","01509568","-80.61","Agency Staff","130113303","06/04/16","Physical Disabilities Assessment","Physical & Sensory Disabilities Management","R1100"
"Wolverhampton City Council","http://opendatacommunities.org/id/metropolitan-district-council/wolverhampton","Capita Resourcing Limited","01509568","1,161.00","Agency Staff","130113303","06/04/16","Physical Disabilities Assessment","Physical & Sensory Disabilities Management","R1100"
"Wolverhampton City Council","http://opendatacommunities.org/id/metropolitan-district-council/wolverhampton","Capita Resourcing Limited","01524181","578.13","Agency Staff","130115246","27/04/16","Looked After Children","Looked After Team 1","R1100"
